Workbook

Sheet Coût de l'eau potable
A1: Version révisée le 25 / 07 / 2022 | M1: Cell link Année de calcul | N1: 2
M2: Cell link Nom de la commune | N2: 1
D3: Ministère du Développement durable et des Infrastructures | I3: Choisir l'année de calcul : | M3: PPRI | N3: =LOOKUP(N2,N13:N116,O13:O116) -> 0
D4: Association Luxembourgeoise des Services d'Eau | M4: Zone urbaine | N4: =IF(OR(N2=1,N2=108),0,LOOKUP(N2,N13:N116,P13:P116)) -> 0
H5: Année de référence (comptes) : | K5: 2021 | M5: Zone rurale | N5: =IF(OR(N2=1,N2=108),0,IF(N4=0,1,0)) -> 0
M6: Limite des coûts indexée | N6: =5/108*N7*IF($N$1=1,1*(1+D13)^(K7-K5),1) -> 5.043518519
D7: Tableur relatif au calcul du coût de l'eau potable | I7: Données prévisionnelles : | K7: =K5+2 -> 2023 | M7: =CONCATENATE("Indice ICPN base 100 2015 (moyenne de l'année ",K5,")") -> Indice ICPN base 100 2015 (moyenne de l'année 2021) | N7: 108.94
M9: Eau non facturée (%) | N9: =1-(D28)/(D22+D23) -> 
M10: Consommation (l/habitant/jour) | N10: =D26/D19/365.25*1000 -> 
C11: REMARQUE PRELIMINAIRE : Afin que les communes établissent en connaissance de cause la tarification de l’eau applicable à partir du 1er janvier de l'année X+1 en conformité avec la loi relative à l’eau, les communes procèdent au calcul du coût effectif de l’eau pour l'année qui précède X-1, le budget communal le plus récent décompté. A partir de l’année de référence X-1, le présent tableur fait une projection à l’année X+1 en tenant compte de l’évolution estimée en deux ans de l’indice des prix à la consommation et de l'indice des prix de la construction. Aussi est-il préconisé de se fixer une période de trois ans pour rechercher les équilibres budgétaires. En d’autres termes, les charges et les recettes sont observées sur une période de 3 ans avant que les prix soient réajustés tout en tenant compte de l'évolution prévisible du bilan financier. | M11: Longueur réseau (m/habitant) | N11: =('Amortissement infrastructures'!F164+'Amortissement infrastructures'!F150+'Amortissement infrastructures'!F138+'Amortissement infrastructures'!F114+'Amortissement infrastructures'!F101+'Amortissement infrastructures'!F84+'Amortissement infrastructures'!F67+'Amortissement infrastructures'!F54)/D19 -> 
F12: Légende : | G12: coûts partiellement non imputables | I12: coûts non imputables
C13: Variation annuelle estimée de l'indice IPCN sur deux ans (prévision STATEC) : | D13: 0.025 | M13: Nom de la commune | N13: 1 | O13: 0 | P13: 0
M14: AERENZDALL | N14: 2 | O14: 12969 | P14: 0
B15: 0. | C15: =CONCATENATE("Données à caractère général (année de référence ",$K$5,")") -> Données à caractère général (année de référence 2021) | M15: BEAUFORT | N15: 3 | O15: 5153 | P15: 0
M16: BECH | N16: 4 | O16: 13156 | P16: 0
C17: Commune : | M17: BECKERICH | N17: 5 | O17: 9566 | P17: 0
C18: Superficie (ha) : | D18: 0 | E18: 10 | M18: BERDORF | N18: 6 | O18: 10868 | P18: 0
C19: =CONCATENATE("Population résidente (au 31 décembre ",$K$5,") :") -> Population résidente (au 31 décembre 2021) : | D19: 0 | M19: BERTRANGE | N19: 7 | O19: 2189 | P19: 0
C20: PPRI (m) | D20: =N3 -> 0 | M20: BETTEMBOURG | N20: 8 | O20: 5467 | P20: 0
M21: BETTENDORF | N21: 9 | O21: 6721 | P21: 0
C22: Production autonome annuelle alimentant l'infrastructure d'approvisionnement locale (m3/an) : | D22: =E42-SUM(E56:E57) -> 0 | M22: BETZDORF | N22: 10 | O22: 6426 | P22: 0
C23: Achat annuelle d'eau potable suivant facture (m3/an) : | D23: =E50 -> 0 | M23: BISSEN | N23: 11 | O23: 1638 | P23: 0
M24: BIWER | N24: 12 | O24: 9197 | P24: 0
C25: Consommation des entités privées et publiques internes et externes approvisionnées par l'infrastructure de distribution communale, tout secteur confondu NOTA BENE : | D25: Consommations internes et externes (m3/an) | M25: BOULAIDE | N25: 13 | O25: 4223 | P25: 0
C26: - quantité d'eau potable facturée aux consommateurs internes : | M26: BOURSCHEID | N26: 14 | O26: 18712 | P26: 0
C27: - quantité d'eau potable facturée aux consommateurs externes : | D27: =E53+E54 -> 0 | M27: BOUS | N27: 15 | O27: 2264 | P27: 0
C28: Somme de la vente privée et publique interne et externe (m3/an) : | D28: =D26+D27 -> 0 | M28: CLERVAUX | N28: 16 | O28: 32029 | P28: 0
M29: COLMAR-BERG | N29: 17 | O29: 3388 | P29: 0
C30: Compteurs des consommateurs privés et publics internes et externes raccordés au réseau de distribution communal, tout secteur confondu NOTA BENE : | D30: 20 | E30: 25 | F30: 32 | G30: 40 | H30: 50 | I30: 80 | J30: 100 | K30: 150 | M30: CONSDORF | N30: 18 | O30: 12575 | P30: 0
C31: - nombre de compteurs : | M31: CONTERN | N31: 19 | O31: 4404 | P31: 0
C32: Diamètres totaux (mm) : | D32: =D31*D30 -> 0 | E32: 0 | F32: 0 | G32: 0 | H32: 0 | I32: 0 | J32: 0 | K32: 0 | M32: DALHEIM | N32: 20 | O32: 5047 | P32: 0
C33: Somme des diamètres (mm) : | D33: =D32+E32+F32+G32+H32+I32+J32+K32 -> 0 | M33: DIEKIRCH | N33: 21 | O33: 0 | P33: 0
M34: DIFFERDANGE | N34: 22 | O34: 7717 | P34: 1
M35: DIPPACH | N35: 23 | O35: 4175 | P35: 0
B36: 1. | C36: =CONCATENATE("Approvisionnement de la commune en eau potable et fourniture à d'autres entités (année de référence ",K5,")") -> Approvisionnement de la commune en eau potable et fourniture à d'autres entités (année de référence 2021) | M36: DUDELANGE | N36: 24 | O36: 0 | P36: 1
M37: ECHTERNACH | N37: 25 | O37: 2744 | P37: 0
D38: Capac. réservées (m3/jour) AIDE | E38: Q prélev. / fournies (m3/an) AIDE | F38: Remarques | M38: ELL | N38: 26 | O38: 6801 | P38: 0
B39: 1.1. | C39: Production autonome NOTA BENE : | M39: ERPELDANGE | N39: 27 | O39: 4513 | P39: 0
C40: - prélèvement sur sources : | M40: ESCH-SUR-ALZETTE | N40: 28 | O40: 0 | P40: 1
C41: - prélèvement sur forages : | M41: ESCH-SUR-SÛRE | N41: 29 | O41: 23291 | P41: 0
C42: Total de la production autonome annuelle d'eau potable prélevée par la commune : | E42: =SUM(E40:E41) -> 0 | F42: Reporté au chapitre 0. | H42: =D22 -> 0 | M42: ETTELBRUCK | N42: 30 | O42: 3856 | P42: 0
B43: 1.2. | C43: Approvisionnement externe : | M43: FEULEN | N43: 31 | O43: 1613 | P43: 0
C44: - syndicats : | M44: FISCHBACH | N44: 32 | O44: 8168 | P44: 0
M45: FLAXWEILER | N45: 33 | O45: 10735 | P45: 0
M46: FRISANGE | N46: 34 | O46: 5171 | P46: 0
C47: - communes : | M47: GARNICH | N47: 35 | O47: 6204 | P47: 0
M48: GOESDORF | N48: 36 | O48: 12555 | P48: 0
M49: GREVENMACHER | N49: 37 | O49: 0 | P49: 0
C50: Total de l'approvisionnement externe : | D50: =SUM(D45:D49) -> 0 | E50: =SUM(E45:E49) -> 0 | F50: Reporté au chapitre 0. | H50: =D31 -> 0 | M50: GROSBOUS | N50: 38 | O50: 6785 | P50: 0
B51: 1.3. | C51: Fourniture à des entités établies hors du territoire de la commune : | E51: Consommations externes | M51: HABSCHT | N51: 39 | O51: 11699 | P51: 0
C52: - preneurs d'eau externes alimentés par l'infrastructure d'approvisionnement local NOTA BENE : | M52: HELPERKNAPP | N52: 40 | O52: 16764 | P52: 0
M53: HEFFINGEN | N53: 41 | O53: 4111 | P53: 0
M54: HESPERANGE | N54: 42 | O54: 7211 | P54: 0
C55: - preneurs d'eau externes directement approvisionnés à la ressource NOTA BENE : | M55: JUNGLINSTER | N55: 43 | O55: 21028 | P55: 0
M56: KÄERJENG | N56: 44 | O56: 7582 | P56: 0
M57: KAYL | N57: 45 | O57: 1490 | P57: 0
C58: Total de la fourniture à des entités externes NOTA BENE : | D58: =SUM(D53:D57) -> 0 | E58: =SUM(E53:E57) -> 0 | M58: KEHLEN | N58: 46 | O58: 9103 | P58: 0
C59: Capacité disponible pour l'approvisionnement interne de la commune (m3/jour) AIDE : | D59: =E42/365+D50-SUM(D53:D54) -> 0 | M59: KIISCHPELT | N59: 47 | O59: 8788 | P59: 0
C60: Quantité d'eau alimentant le réseau de distribution de la commune (m3/an) AIDE : | E60: =E42+E50-E58 -> 0 | M60: KOERICH | N60: 48 | O60: 4200 | P60: 0
M61: KOPSTAL | N61: 49 | O61: 868 | P61: 0
M62: LAC DE LA HAUTE SURE | N62: 50 | O62: 14062 | P62: 0
B63: 2. | C63: =CONCATENATE("Coût complet des services liés à l'approvisionnement en eau potable ",IF(N1=2,CONCATENATE("(année de référence ",K5,")"),CONCATENATE("(données prévisionnelles ",K7,")"))) -> Coût complet des services liés à l'approvisionnement en eau potable (année de référence 2021) | M63: LAROCHETTE | N63: 51 | O63: 3687 | P63: 0
M64: LENNINGEN | N64: 52 | O64: 3192 | P64: 0
B65: 2.1. | C65: Charges de fonctionnement, d'entretien et d'exploitation des infrastructures d'approvisionnement en eau potable | M65: LEUDELANGE | N65: 53 | O65: 1614 | P65: 0
C66: Coûts de fonctionnement (charges d’exploitation et d’entretien inscrites au budget ordinaire) + charges d’amortissement établies sur base du coût de renouvellement des investissements (charges de renouvellement théoriques) | M66: LINTGEN | N66: 54 | O66: 1975 | P66: 0
M67: LORENTZWEILER | N67: 55 | O67: 5350 | P67: 0
C68: Dépenses pour : REMARQUE : Indication non exhaustive des codes du Plan budgétaire normalisé. Merci de signaler toute erreur de code. | D68: Total article budgétaire (€) | E68: Taux d'utilisation eau potable | F68: Coûts fixes (€/an) | G68: Coûts variables (€/an) | H68: Coûts totaux (€/an) | I68: Remarques | M68: LUXEMBOURG | N68: 56 | O68: 0 | P68: 1
C69: - frais de personnel administratif et technique (art. 3/630/621xxx et autres) AIDE : | E69: 1 | F69: =D69*E69*IF($N$1=1,(1+D13)^(K7-K5),1) -> 0 | H69: =SUM(F69:G69) -> 0 | M69: MAMER | N69: 57 | O69: 6429 | P69: 0
C70: - fournitures pour l'entretien et le nettoyage des bâtiments (art. 3/630/630200) : | E70: 1 | F70: =D70*E70*IF($N$1=1,(1+D13)^(K7-K5),1) -> 0 | H70: =SUM(F70:G70) -> 0 | M70: MANTERNACH | N70: 58 | O70: 6635 | P70: 0
C71: - frais d'entretien et de nettoyage des bâtiments : | E71: 1 | F71: =D71*E71*IF($N$1=1,(1+D13)^(K7-K5),1) -> 0 | H71: 0 | M71: MERSCH | N71: 59 | O71: 10882 | P71: 0
C72: - fournitures pour l'entretien des réseaux (art. 3/630/6200) : | E72: 1 | G72: =D72*E72*IF($N$1=1,(1+D13)^(K7-K5),1) -> 0 | H72: 0 | M72: MERTERT | N72: 60 | O72: 1921 | P72: 0
C73: - frais de consommation électrique des infrastructures et des réseaux (art. 3/630/608112) : | E73: 1 | G73: =D73*E73*IF($N$1=1,(1+D13)^(K7-K5),1) -> 0 | H73: 0 | M73: MERTZIG | N73: 61 | O73: 0 | P73: 0
C74: - facturation interne des consommations eau-électricité-gaz (art. 3/630/608111/X & 112/X & 113/X) : | E74: 1 | G74: =D74*E74*IF($N$1=1,(1+D13)^(K7-K5),1) -> 0 | H74: 0 | M74: MONDERCANGE | N74: 62 | O74: 4935 | P74: 0
C75: - frais d'entretien des infrastructures et des réseaux (art. 3/630/603200) NOTA BENE : | E75: 1 | F75: =D75*E75*IF($N$1=1,(1+D13)^(K7-K5),1) -> 0 | H75: 0 | M75: MONDORF-LES-BAINS | N75: 63 | O75: 3722 | P75: 0
C76: - charges informatiques (art. 3/630/608112) AIDE : | E76: 1 | G76: =D76*E76*IF($N$1=1,(1+D13)^(K7-K5),1) -> 0 | H76: 0 | M76: NIEDERANVEN | N76: 64 | O76: 10772 | P76: 0
C77: - charges de matériel (art. 3/630/603xxx) : | E77: 1 | G77: =D77*E77*IF($N$1=1,(1+D13)^(K7-K5),1) -> 0 | H77: 0 | M77: NOMMERN | N77: 65 | O77: 5382 | P77: 0
C78: - charges de services extérieurs (art. 3/630/618xxx) AIDE : | E78: 1 | G78: =D78*E78*IF($N$1=1,(1+D13)^(K7-K5),1) -> 0 | H78: 0 | M78: PARC HOSINGEN | N78: 66 | O78: 25874 | P78: 0
C79: - charges d'assurances (art. 3/630/614xxx) : | E79: 1 | F79: =D79*E79*IF($N$1=1,(1+D13)^(K7-K5),1) -> 0 | H79: 0 | M79: PETANGE | N79: 67 | O79: 2637 | P79: 1
C80: - charges de contrats d'entretien (art. 3/630/612300) : | E80: 1 | F80: =D80*E80*IF($N$1=1,(1+D13)^(K7-K5),1) -> 0 | H80: 0 | M80: PREIZERDAUL | N80: 68 | O80: 2476 | P80: 0
C81: - charges de contrôle qualité : | E81: 1 | G81: =D81*E81*IF($N$1=1,(1+D13)^(K7-K5),1) -> 0 | H81: 0 | M81: PUTSCHEID | N81: 69 | O81: 10196 | P81: 0
C82: - charges de comptage et encaissement : | E82: 1 | F82: =D82*E82*IF($N$1=1,(1+D13)^(K7-K5),1) -> 0 | H82: 0 | M82: RAMBROUCH | N82: 70 | O82: 25034 | P82: 0
C83: - charges générales et diverses : | E83: 1 | G83: =D83*E83*IF($N$1=1,(1+D13)^(K7-K5),1) -> 0 | H83: 0 | M83: RECKANGE-SUR-MESS | N83: 71 | O83: 7760 | P83: 0
C84: - charges administratives AIDE : | E84: 1 | F84: =D84*E84*IF($N$1=1,(1+D13)^(K7-K5),1) -> 0 | H84: 0 | M84: REDANGE/ATTERT | N84: 72 | O84: 10563 | P84: 0
C85: - taxe de prélèvement de la production autonome AIDE : | G85: =D22*0.125 -> 0 | H85: 0 | M85: REISDORF | N85: 73 | O85: 5344 | P85: 0
C86: - charges totales de l'amortissement des infrastructures « Sollwert » AIDE : | F86: ='Amortissement infrastructures'!N266 -> 0 | H86: 0 | M86: REMICH | N86: 74 | O86: 0 | P86: 0
C87: - charges non opposables de l'amortissement en fonction du PPRI de la commune AIDE : | F87: =-1.3*D20*'Amortissement infrastructures'!H47*'Amortissement infrastructures'!L47/100*((1+0)+(0.12*(1+0)))*IF($N$1=1,(1+'Amortissement infrastructures'!O10)^(K7-K5),1) -> 0 | H87: 0 | M87: ROESER | N87: 75 | O87: 8234 | P87: 0
C88: - amortissement parc immobilier : | F88: ='Amortissement charroi et immob.'!O72 -> 0 | H88: 0 | M88: ROSPORT-MOMPACH | N88: 76 | O88: 23507 | P88: 0
C89: - amortissement parc automobile : | F89: ='Amortissement charroi et immob.'!O47 -> 0 | H89: 0 | M89: RUMELANGE | N89: 77 | O89: 0 | P89: 1
C90: Charges imputables de fonctionnement, d'entretien et d'exploitation …………………………… | D90: =CONCATENATE(IF(N1=2,CONCATENATE("(année de référence ",K5,") :"),CONCATENATE("(données prévisionnelles ",K7,") :"))) -> (année de référence 2021) : | F90: =SUM(F69:F89) -> 0 | G90: =SUM(G69:G89) -> 0 | H90: =SUM(H69:H89) -> 0 | M90: SAEUL | N90: 78 | O90: 6060 | P90: 0
M91: SANDWEILER | N91: 79 | O91: 2034 | P91: 0
B92: 2.2. | C92: Frais pour achat d'eau potable | M92: SANEM | N92: 80 | O92: 6126 | P92: 0
C93: Budget ou compte ordinaire | M93: SCHENGEN | N93: 81 | O93: 13631 | P93: 0
M94: SCHIEREN | N94: 82 | O94: 2133 | P94: 0
C95: Achats à partir de NOTA BENE : | F95: Coûts fixes (€/an TTC) | G95: Coûts variables (€/an TTC) | H95: Coûts totaux (€/an TTC) | I95: Remarques | M95: SCHIFFLANGE | N95: 83 | O95: 0 | P95: 1
C96: - syndicats (art. 3/630/608111/S) : | M96: SCHUTTRANGE | N96: 84 | O96: 6225 | P96: 0
C97: =IF(C45="","",C45) ->  | H97: =(F97+G97)*IF($N$1=1,(1+$D$13)^(K7-K5),1) -> 0 | M97: STADTBREDIMUS | N97: 85 | O97: 3311 | P97: 0
C98: =IF(C46="","",C46) ->  | H98: =(F98+G98)*IF($N$1=1,(1+$D$13)^(K7-K5),1) -> 0 | M98: STEINFORT | N98: 86 | O98: 4578 | P98: 0
C99: - communes (art. 3/630/608111/C) : | M99: STEINSEL | N99: 87 | O99: 1534 | P99: 0
C100: =IF(C48="","",C48) ->  | H100: =(F100+G100)*IF($N$1=1,(1+$D$13)^(K7-K5),1) -> 0 | M100: STRASSEN | N100: 88 | O100: 0 | P100: 0
C101: =IF(C49="","",C49) ->  | H101: =(F101+G101)*IF($N$1=1,(1+$D$13)^(K7-K5),1) -> 0 | M101: TANDEL | N101: 89 | O101: 16801 | P101: 0
C102: =CONCATENATE("Total des frais pour achat d'eau potable ",IF(N1=2,CONCATENATE("(année de référence ",K5,") :"),CONCATENATE("(données prévisionnelles ",K7,") :"))) -> Total des frais pour achat d'eau potable (année de référence 2021) : | F102: =SUM(F97:F101)*IF($N$1=1,(1+$D$13)^(K7-K5),1) -> 0 | G102: =SUM(G97:G101)*IF($N$1=1,(1+$D$13)^(K7-K5),1) -> 0 | H102: =SUM(H97:H101) -> 0 | M102: TROISVIERGES | N102: 90 | O102: 10196 | P102: 0
M103: USELDANGE | N103: 91 | O103: 7968 | P103: 0
C104: Coûts imputables des services liés à l'infrastructure d'approvisionnement locale en €/an …… | D104: =CONCATENATE(IF(N1=2,CONCATENATE("(année de référence ",K5,") :"),CONCATENATE("(données prévisionnelles ",K7,") :"))) -> (année de référence 2021) : | F104: =F90+F102 -> 0 | G104: =G90+G102 -> 0 | H104: =H90+H102 -> 0 | M104: VALLEE DE L'ERNZ | N104: 92 | O104: 12969 | P104: 0
M105: VIANDEN | N105: 93 | O105: 0 | P105: 0
C106: Coût complet des services liés à l'infrastructure d'approvisionnement locale en €/an ………… | D106: =CONCATENATE(IF(N1=2,CONCATENATE("(année de référence ",K5,") :"),CONCATENATE("(données prévisionnelles ",K7,") :"))) -> (année de référence 2021) : | H106: =H104-F87 -> 0 | M106: VICHTEN | N106: 94 | O106: 2534 | P106: 0
M107: WAHL | N107: 95 | O107: 8403 | P107: 0
M108: WALDBILLIG | N108: 96 | O108: 11226 | P108: 0
B109: 3. | C109: =CONCATENATE("Recettes relatives à la fourniture de l'eau potable par la commune ",IF(N1=2,CONCATENATE("(année de référence ",K5,")"),CONCATENATE("(données prévisionnelles ",K7,")"))) -> Recettes relatives à la fourniture de l'eau potable par la commune (année de référence 2021) | M109: WALDBREDIMUS | N109: 97 | O109: 2662 | P109: 0
C110: Budget ou compte ordinaire | M110: WALFERDANGE | N110: 98 | O110: 1462 | P110: 0
D111: Recettes fixes (€/an) | E111: Recettes variables (€/an) | F111: Recettes totales (€/an) | G111: Remarques | M111: WEILER-LA-TOUR | N111: 99 | O111: 2793 | P111: 0
B112: 3.1. | C112: Fourniture à des entités publiques établies hors du territoire de la commune : | M112: WEISWAMPACH | N112: 100 | O112: 16314 | P112: 0
C113: - entités externes alimentées par l'infrastructure d'approvisionnement local NOTA BENE : | M113: WILTZ | N113: 101 | O113: 9400 | P113: 0
C114: =IF(C53="","",C53) ->  | F114: =(D114+E114)*IF($N$1=1,(1+$D$13)^(K7-K5),1) -> 0 | M114: WINCRANGE | N114: 102 | O114: 37726 | P114: 0
C115: =IF(C54="","",C54) ->  | F115: =(D115+E115)*IF($N$1=1,(1+$D$13)^(K7-K5),1) -> 0 | M115: WINSELER | N115: 103 | O115: 12071 | P115: 0
C116: - entités qui ne sont pas approvisionnées par l'infrastructure d'approvisionnement local NOTA BENE : | M116: WORMELDANGE | N116: 104 | O116: 11968 | P116: 0
F117: =(D117+E117)*IF($N$1=1,(1+$D$13)^(K7-K5),1) -> 0
F118: =(D118+E118)*IF($N$1=1,(1+$D$13)^(K7-K5),1) -> 0
C119: Total des recettes pour fourniture d'eau potable à l'autres entités (€/an) : | D119: =SUM(D114:D118)*IF($N$1=1,(1+$D$13)^(K7-K5),1) -> 0 | E119: =SUM(E114:E118)*IF($N$1=1,(1+$D$13)^(K7-K5),1) -> 0 | F119: =SUM(F114:F118) -> 0
B120: 3.2. | C120: Fourniture d'eau potable aux consommateurs finaux internes AIDE :
C121: - secteur des ménages AIDE : | F121: =(D121+E121)*IF($N$1=1,(1+$D$13)^(K7-K5),1) -> 0
C122: - secteur industriel : | F122: =(D122+E122)*IF($N$1=1,(1+$D$13)^(K7-K5),1) -> 0
C123: - secteur agricole : | F123: =(D123+E123)*IF($N$1=1,(1+$D$13)^(K7-K5),1) -> 0
C124: - secteur HORECA : | F124: =(D124+E124)*IF($N$1=1,(1+$D$13)^(K7-K5),1) -> 0
C125: Total des recettes pour fourniture d'eau potable aux consommateurs internes (€/an) : | D125: =SUM(D121:D124)*IF($N$1=1,(1+$D$13)^(K7-K5),1) -> 0 | E125: =SUM(E121:E124)*IF($N$1=1,(1+$D$13)^(K7-K5),1) -> 0 | F125: =SUM(F121:F124) -> 0
B126: 3.3. | C126: Autres recettes :
F127: =(D127+E127)*IF($N$1=1,(1+$D$13)^(K7-K5),1) -> 0
F128: =(D128+E128)*IF($N$1=1,(1+$D$13)^(K7-K5),1) -> 0
F129: =(D129+E129)*IF($N$1=1,(1+$D$13)^(K7-K5),1) -> 0
C130: Total autres recettes (€/an) : | D130: =SUM(D127:D129)*IF($N$1=1,(1+$D$13)^(K7-K5),1) -> 0 | E130: =SUM(E127:E129)*IF($N$1=1,(1+$D$13)^(K7-K5),1) -> 0 | F130: =SUM(F127:F129) -> 0
C131: =CONCATENATE("Total des recettes pour fourniture d'eau potable en €/an ",IF(N1=2,CONCATENATE("(année de référence ",K5,") :"),CONCATENATE("(données prévisionnelles ",K7,") :"))) -> Total des recettes pour fourniture d'eau potable en €/an (année de référence 2021) : | D131: =D119+D125+D130 -> 0 | E131: =E119+E125+E130 -> 0 | F131: =F119+F125+F130 -> 0
B134: 4. | C134: =CONCATENATE("Résultat comptable pour la distribution d'eau potable par l'inrastructure d'approvisionnement communale ",IF(N1=2,CONCATENATE("(année de référence ",K5,")"),CONCATENATE("(données prévisionnelles ",K7,")"))) -> Résultat comptable pour la distribution d'eau potable par l'inrastructure d'approvisionnement communale (année de référence 2021)
B136: 4.1. | C136: Calcul du coût imputable de l'eau potable
D137: Coûts fixes | E137: Coûts variables | F137: Coûts totaux
C138: Coûts imputables des services liés à l'approvisionnement en eau potable NOTA BENE : | D138: =F104-D130-(D114+D115) -> 0 | E138: =G104-E130-(E114+E115) -> 0 | F138: =H104-F130-(F114+F115) -> 0
C139: Somme des diamètres des compteurs : | D139: =D33 -> 0
C140: Coût fixe par unité de diamètre du compteur (€/mm/an) : | D140: =D138/D139 -> 
C141: Quantité d'eau potable distribuée par l'infrastructure d'approvisionnement communale (m3/an) : | E141: =D28 -> 0 | F141: =D28 -> 0
C142: Coût variable par m3 d'eau potable (€/m3) : | E142: =E138/E141 -> 
C143: Coût global par m3 d'eau potable (€/m3) AIDE : | F143: =F138/F141 -> 
C145: Recalcul du coût unitaire par diamètre du compteur :
C146: Diamètre du compteur : | D146: 20 | E146: 25 | F146: 32 | G146: 40 | H146: 50 | I146: 80 | J146: 100 | K146: 150
C147: Coût fixe par compteur (€/an) AIDE : | D147: =$D$140*D146 ->  | E147: =$D$140*E146 -> 
B150: 5. | C150: =CONCATENATE("Tarification relative à la distribution interne pour l'année ",K7) -> Tarification relative à la distribution interne pour l'année 2023
C151: =CONCATENATE("CHOISIR L'OPTION « DONNEES PREVISIONNELLES ",K7," » DANS LE BANDEAU DE TITRE") -> CHOISIR L'OPTION « DONNEES PREVISIONNELLES 2023 » DANS LE BANDEAU DE TITRE
B153: 5.1. | C153: Approche « coûts rééquilibrés suivant circulaire ministérielle n°2909 »
C155: REMARQUE : Les prix proposés ci-après tiennent compte des consignes de rééquilibrage du coût de revient de l'eau telles que communiquées par la circulaire ministérielle n°2909 du 28 mars 2011. Ce rééquilibrage élimine l'effet pénalisant des conditions géographiques locales (ajustement de l'amortissement des infrastructures d'approvisionnement sur base du PPRI) et instaure le plafonnement du coût global par m3 opposable aux consommateurs afin de limiter les conséquences économiques des coûts sur les tarifs. Ce plafond est indexé sur l'échelle mobile des salaires. D'autre part, la tarification rééquilibrée préconise un partage fixe / variable standardisé pour les différents secteurs afin de tenir compte des coûts spécifiques que génèrent les activités de ces secteurs.
C157: Coût imputable rééquilibré : | D157: 100% = | F157: Variable : Fixe
C158: - coût global indexé par m3 d'eau potable : | D158: =IF(F143>N6,N6,F143) ->  | F158: =E138/F138 -> 
C159: - coût global indexé par mm de diamètre des compteurs : | D159: =IF(F143>N6,(N6*F141)/D139,F138/D139) ->  | F159: =D138/F138 -> 
C161: Partage fixe/variable non corrigé : | D161: Fixe corresp. | E161: Var. arrondie | F161: Var. ≥ x € | G161: Var. standard. | H161: % variable
C162: - secteur des ménages : | D162: =(1-E162/$D$158)*$D$159 ->  | E162: =ROUND(ROUND(F162/1/10^(ROUNDDOWN((LOG(F162/1)),0))/IF(F162/1/10^(ROUNDDOWN((LOG(F162/1)),0))<0.5,0.01,IF(F162/1/10^(ROUNDDOWN((LOG(F162/1)),0))<1.2,0.02,IF(F162/1/10^(ROUNDDOWN((LOG(F162/1)),0))<2.5,0.05,IF(F162/1/10^(ROUNDDOWN((LOG(F162/1)),0))<5,0.1,0.2)))),0)*IF(F162/1/10^(ROUNDDOWN((LOG(F162/1)),0))<0.5,0.01,IF(F162/1/10^(ROUNDDOWN((LOG(F162/1)),0))<1.2,0.02,IF(F162/1/10^(ROUNDDOWN((LOG(F162/1)),0))<2.5,0.05,IF(F162/1/10^(ROUNDDOWN((LOG(F162/1)),0))<5,0.1,0.2))))*10^(ROUNDDOWN((LOG(F162/1)),0)),2) ->  | F162: =IF(G162<$G$169,IF($G$169>$D$158,$D$158,$G$169),G162) ->  | G162: =$D$158*H162/100 ->  | H162: 75
C163: - secteur industriel : | D163: =(1-E163/$D$158)*$D$159 ->  | E163: =ROUND(ROUND(F163/1/10^(ROUNDDOWN((LOG(F163/1)),0))/IF(F163/1/10^(ROUNDDOWN((LOG(F163/1)),0))<0.5,0.01,IF(F163/1/10^(ROUNDDOWN((LOG(F163/1)),0))<1.2,0.02,IF(F163/1/10^(ROUNDDOWN((LOG(F163/1)),0))<2.5,0.05,IF(F163/1/10^(ROUNDDOWN((LOG(F163/1)),0))<5,0.1,0.2)))),0)*IF(F163/1/10^(ROUNDDOWN((LOG(F163/1)),0))<0.5,0.01,IF(F163/1/10^(ROUNDDOWN((LOG(F163/1)),0))<1.2,0.02,IF(F163/1/10^(ROUNDDOWN((LOG(F163/1)),0))<2.5,0.05,IF(F163/1/10^(ROUNDDOWN((LOG(F163/1)),0))<5,0.1,0.2))))*10^(ROUNDDOWN((LOG(F163/1)),0)),2) ->  | F163: =IF(G163<$G$169,IF($G$169>$D$158,$D$158,$G$169),G163) ->  | H163: 35
C164: - secteur agricole : | D164: =(1-E164/$D$158)*$D$159 ->  | F164: =IF(G164<$G$169,IF($G$169>$D$158,$D$158,$G$169),G164) ->  | H164: 40
C165: - secteur HORECA : | D165: =(1-E165/$D$158)*$D$159 ->  | H165: 55
C167: Tarification rééquilibrée NOTA BENE : | D167: Part fixe (€/mm/an hTVA) | E167: Part variable (€/m3 hTVA) | G167: Prix plancher (€/m3) AIDE
C169: - secteur des ménages : | D169: =ROUND(ROUND(D162/1/10^(ROUNDDOWN((LOG(D162/1)),0))/IF(D162/1/10^(ROUNDDOWN((LOG(D162/1)),0))<0.5,0.01,IF(D162/1/10^(ROUNDDOWN((LOG(D162/1)),0))<1.2,0.02,IF(D162/1/10^(ROUNDDOWN((LOG(D162/1)),0))<2.5,0.05,IF(D162/1/10^(ROUNDDOWN((LOG(D162/1)),0))<5,0.1,0.2)))),0)*IF(D162/1/10^(ROUNDDOWN((LOG(D162/1)),0))<0.5,0.01,IF(D162/1/10^(ROUNDDOWN((LOG(D162/1)),0))<1.2,0.02,IF(D162/1/10^(ROUNDDOWN((LOG(D162/1)),0))<2.5,0.05,IF(D162/1/10^(ROUNDDOWN((LOG(D162/1)),0))<5,0.1,0.2))))*10^(ROUNDDOWN((LOG(D162/1)),0)),2) ->  | E169: =E162 -> 
C170: - secteur industriel : | D170: =ROUND(ROUND(D163/1/10^(ROUNDDOWN((LOG(D163/1)),0))/IF(D163/1/10^(ROUNDDOWN((LOG(D163/1)),0))<0.5,0.01,IF(D163/1/10^(ROUNDDOWN((LOG(D163/1)),0))<1.2,0.02,IF(D163/1/10^(ROUNDDOWN((LOG(D163/1)),0))<2.5,0.05,IF(D163/1/10^(ROUNDDOWN((LOG(D163/1)),0))<5,0.1,0.2)))),0)*IF(D163/1/10^(ROUNDDOWN((LOG(D163/1)),0))<0.5,0.01,IF(D163/1/10^(ROUNDDOWN((LOG(D163/1)),0))<1.2,0.02,IF(D163/1/10^(ROUNDDOWN((LOG(D163/1)),0))<2.5,0.05,IF(D163/1/10^(ROUNDDOWN((LOG(D163/1)),0))<5,0.1,0.2))))*10^(ROUNDDOWN((LOG(D163/1)),0)),2) ->  | E170: =E163 -> 
C171: - secteur agricole : | D171: =ROUND(ROUND(D164/1/10^(ROUNDDOWN((LOG(D164/1)),0))/IF(D164/1/10^(ROUNDDOWN((LOG(D164/1)),0))<0.5,0.01,IF(D164/1/10^(ROUNDDOWN((LOG(D164/1)),0))<1.2,0.02,IF(D164/1/10^(ROUNDDOWN((LOG(D164/1)),0))<2.5,0.05,IF(D164/1/10^(ROUNDDOWN((LOG(D164/1)),0))<5,0.1,0.2)))),0)*IF(D164/1/10^(ROUNDDOWN((LOG(D164/1)),0))<0.5,0.01,IF(D164/1/10^(ROUNDDOWN((LOG(D164/1)),0))<1.2,0.02,IF(D164/1/10^(ROUNDDOWN((LOG(D164/1)),0))<2.5,0.05,IF(D164/1/10^(ROUNDDOWN((LOG(D164/1)),0))<5,0.1,0.2))))*10^(ROUNDDOWN((LOG(D164/1)),0)),2) -> 
C172: - secteur HORECA : | D172: =ROUND(ROUND(D165/1/10^(ROUNDDOWN((LOG(D165/1)),0))/IF(D165/1/10^(ROUNDDOWN((LOG(D165/1)),0))<0.5,0.01,IF(D165/1/10^(ROUNDDOWN((LOG(D165/1)),0))<1.2,0.02,IF(D165/1/10^(ROUNDDOWN((LOG(D165/1)),0))<2.5,0.05,IF(D165/1/10^(ROUNDDOWN((LOG(D165/1)),0))<5,0.1,0.2)))),0)*IF(D165/1/10^(ROUNDDOWN((LOG(D165/1)),0))<0.5,0.01,IF(D165/1/10^(ROUNDDOWN((LOG(D165/1)),0))<1.2,0.02,IF(D165/1/10^(ROUNDDOWN((LOG(D165/1)),0))<2.5,0.05,IF(D165/1/10^(ROUNDDOWN((LOG(D165/1)),0))<5,0.1,0.2))))*10^(ROUNDDOWN((LOG(D165/1)),0)),2) -> 
B174: 5.2. | C174: Approche « prix variables proposés »
D175: Part fixe correspondante (€/mm/an hTVA ) | E175: Part variable proposée (€/m3 hTVA )
C176: Prix variables proposés pour les différents secteurs NOTA BENE :
F177: -5ƿ% | G177: +5ƿ%
C178: - secteur des ménages : | D178: =ROUND(ROUND(D184/1/10^(ROUNDDOWN((LOG(D184/1)),0))/IF(D184/1/10^(ROUNDDOWN((LOG(D184/1)),0))<0.5,0.01,IF(D184/1/10^(ROUNDDOWN((LOG(D184/1)),0))<1.2,0.02,IF(D184/1/10^(ROUNDDOWN((LOG(D184/1)),0))<2.5,0.05,IF(D184/1/10^(ROUNDDOWN((LOG(D184/1)),0))<5,0.1,0.2)))),0)*IF(D184/1/10^(ROUNDDOWN((LOG(D184/1)),0))<0.5,0.01,IF(D184/1/10^(ROUNDDOWN((LOG(D184/1)),0))<1.2,0.02,IF(D184/1/10^(ROUNDDOWN((LOG(D184/1)),0))<2.5,0.05,IF(D184/1/10^(ROUNDDOWN((LOG(D184/1)),0))<5,0.1,0.2))))*10^(ROUNDDOWN((LOG(D184/1)),0)),2) ->  | E178: =E184 -> 
C179: - secteur industriel : | D179: =ROUND(ROUND(D185/1/10^(ROUNDDOWN((LOG(D185/1)),0))/IF(D185/1/10^(ROUNDDOWN((LOG(D185/1)),0))<0.5,0.01,IF(D185/1/10^(ROUNDDOWN((LOG(D185/1)),0))<1.2,0.02,IF(D185/1/10^(ROUNDDOWN((LOG(D185/1)),0))<2.5,0.05,IF(D185/1/10^(ROUNDDOWN((LOG(D185/1)),0))<5,0.1,0.2)))),0)*IF(D185/1/10^(ROUNDDOWN((LOG(D185/1)),0))<0.5,0.01,IF(D185/1/10^(ROUNDDOWN((LOG(D185/1)),0))<1.2,0.02,IF(D185/1/10^(ROUNDDOWN((LOG(D185/1)),0))<2.5,0.05,IF(D185/1/10^(ROUNDDOWN((LOG(D185/1)),0))<5,0.1,0.2))))*10^(ROUNDDOWN((LOG(D185/1)),0)),2) ->  | E179: =E185 -> 
C180: - secteur agricole : | D180: =ROUND(ROUND(D186/1/10^(ROUNDDOWN((LOG(D186/1)),0))/IF(D186/1/10^(ROUNDDOWN((LOG(D186/1)),0))<0.5,0.01,IF(D186/1/10^(ROUNDDOWN((LOG(D186/1)),0))<1.2,0.02,IF(D186/1/10^(ROUNDDOWN((LOG(D186/1)),0))<2.5,0.05,IF(D186/1/10^(ROUNDDOWN((LOG(D186/1)),0))<5,0.1,0.2)))),0)*IF(D186/1/10^(ROUNDDOWN((LOG(D186/1)),0))<0.5,0.01,IF(D186/1/10^(ROUNDDOWN((LOG(D186/1)),0))<1.2,0.02,IF(D186/1/10^(ROUNDDOWN((LOG(D186/1)),0))<2.5,0.05,IF(D186/1/10^(ROUNDDOWN((LOG(D186/1)),0))<5,0.1,0.2))))*10^(ROUNDDOWN((LOG(D186/1)),0)),2) -> 
C181: - secteur HORECA : | D181: =ROUND(ROUND(D187/1/10^(ROUNDDOWN((LOG(D187/1)),0))/IF(D187/1/10^(ROUNDDOWN((LOG(D187/1)),0))<0.5,0.01,IF(D187/1/10^(ROUNDDOWN((LOG(D187/1)),0))<1.2,0.02,IF(D187/1/10^(ROUNDDOWN((LOG(D187/1)),0))<2.5,0.05,IF(D187/1/10^(ROUNDDOWN((LOG(D187/1)),0))<5,0.1,0.2)))),0)*IF(D187/1/10^(ROUNDDOWN((LOG(D187/1)),0))<0.5,0.01,IF(D187/1/10^(ROUNDDOWN((LOG(D187/1)),0))<1.2,0.02,IF(D187/1/10^(ROUNDDOWN((LOG(D187/1)),0))<2.5,0.05,IF(D187/1/10^(ROUNDDOWN((LOG(D187/1)),0))<5,0.1,0.2))))*10^(ROUNDDOWN((LOG(D187/1)),0)),2) -> 
C183: Part fixe correspondante non corrigée (€/mm/an) : | D183: Fixe corresp. | E183: Var. arrondie | F183: Var. standard. | G183: % variable
C184: - secteur des ménages : | D184: =(1-E184/$D$158)*$D$159 ->  | E184: =ROUND(ROUND(F184/1/10^(ROUNDDOWN((LOG(F184/1)),0))/IF(F184/1/10^(ROUNDDOWN((LOG(F184/1)),0))<0.5,0.01,IF(F184/1/10^(ROUNDDOWN((LOG(F184/1)),0))<1.2,0.02,IF(F184/1/10^(ROUNDDOWN((LOG(F184/1)),0))<2.5,0.05,IF(F184/1/10^(ROUNDDOWN((LOG(F184/1)),0))<5,0.1,0.2)))),0)*IF(F184/1/10^(ROUNDDOWN((LOG(F184/1)),0))<0.5,0.01,IF(F184/1/10^(ROUNDDOWN((LOG(F184/1)),0))<1.2,0.02,IF(F184/1/10^(ROUNDDOWN((LOG(F184/1)),0))<2.5,0.05,IF(F184/1/10^(ROUNDDOWN((LOG(F184/1)),0))<5,0.1,0.2))))*10^(ROUNDDOWN((LOG(F184/1)),0)),2) ->  | F184: =$D$158*G184/100 ->  | G184: 75
C185: - secteur industriel : | D185: =(1-E185/$D$158)*$D$159 ->  | E185: =ROUND(ROUND(F185/1/10^(ROUNDDOWN((LOG(F185/1)),0))/IF(F185/1/10^(ROUNDDOWN((LOG(F185/1)),0))<0.5,0.01,IF(F185/1/10^(ROUNDDOWN((LOG(F185/1)),0))<1.2,0.02,IF(F185/1/10^(ROUNDDOWN((LOG(F185/1)),0))<2.5,0.05,IF(F185/1/10^(ROUNDDOWN((LOG(F185/1)),0))<5,0.1,0.2)))),0)*IF(F185/1/10^(ROUNDDOWN((LOG(F185/1)),0))<0.5,0.01,IF(F185/1/10^(ROUNDDOWN((LOG(F185/1)),0))<1.2,0.02,IF(F185/1/10^(ROUNDDOWN((LOG(F185/1)),0))<2.5,0.05,IF(F185/1/10^(ROUNDDOWN((LOG(F185/1)),0))<5,0.1,0.2))))*10^(ROUNDDOWN((LOG(F185/1)),0)),2) ->  | F185: =IF(($D$158*G185/100)>F186,F186,$D$158*G185/100) ->  | G185: 35
C186: - secteur agricole : | D186: =(1-E186/$D$158)*$D$159 ->  | F186: =$D$158*G186/100 ->  | G186: 40
C187: - secteur HORECA : | D187: =(1-E187/$D$158)*$D$159 ->  | F187: =$D$158*G187/100 ->  | G187: 55
C189: Recalcul du prix unitaire par diamètre du compteur (€/an) :
C190: Diamètre du compteur : | D190: 20 | E190: 25 | F190: 32 | G190: 40 | H190: 50 | I190: 80 | J190: 100 | K190: 150
C191: - secteur des ménages : | D191: =D$190*$D178 ->  | E191: =E$190*$D178 -> 
C192: - secteur industriel : | D192: =D$190*$D179 -> 
C193: - secteur agricole : | D193: =D$190*$D180 -> 
C194: - secteur HORECA : | D194: =D$190*$D181 -> 

Sheet Amortissement infrastructures
A1: 23 / 03 / 2022 | Q1: Zone urbaine | R1: ='Coût de l''eau potable'!N4 -> 0
B2: Amortissement des infrastructures d'approvisionnement | I2: =IF('Coût de l''eau potable'!$N$1=2,'Coût de l''eau potable'!$H$5,'Coût de l''eau potable'!$I$7) -> Année de référence (comptes) : | O2: =IF('Coût de l''eau potable'!N1=2,'Coût de l''eau potable'!$K$5,'Coût de l''eau potable'!$K$7) -> 2021 | Q2: Zone rurale | R2: ='Coût de l''eau potable'!N5 -> 0
B6: 0. | C6: Taux à base du calcul de l'amortissement | O6: Aide
C8: =CONCATENATE("Indice moyen annuel des prix de la construction de l'année ",'Coût de l''eau potable'!$K$5, " (donnée STATEC) :") -> Indice moyen annuel des prix de la construction de l'année 2021 (donnée STATEC) : | N8: 902.74
C10: Variation annuelle estimée de l'indice des prix de la construction : | N10: ='Coût de l''eau potable'!D13 -> 0.025
C12: =CONCATENATE("Indice moyen annuel estimé des prix de la construction de l'année ",'Coût de l''eau potable'!$K$7," :") -> Indice moyen annuel estimé des prix de la construction de l'année 2023 : | N12: =N8*(1+N10)^('Coût de l''eau potable'!K7-'Coût de l''eau potable'!K5) -> 948.4412125
C14: Taux de TVA appliqué aux travaux d'infrastructures d'approvisionnement : | N14: 0
B17: 1. | C17: Captages | O17: Aide
B19: 1.1. | C19: Sources-captages | I19: Durée de vie utile : | L19: 60 | M19: ans
C21: Déversement journalier moyen | F21: Nombre de sources | G21: Valeur unitaire (€/pc) | I21: Valeur totale (€) | K21: Taux d'amortissement | N21: Amortissement annuel (€)
C22: 0 - 250 m3/j | F22: 0 | G22: x | H22: =ROUND((160000/600.88*IF('Coût de l''eau potable'!N1=2,N8,N12))/10000,0)*10000 -> 240000 | I22: = | J22: =F22*H22 -> 0 | K22: x | L22: =ROUND((1/L19*10000)/5,0)*5/100 -> 1.65 | M22: % | N22: = | O22: =J22*L22/100 -> 0
C23: 250 - 800 m3/j | F23: 0 | G23: x | H23: =ROUND((220000/600.88*IF('Coût de l''eau potable'!N1=2,N8,N12))/10000,0)*10000 -> 330000 | I23: = | J23: =F23*H23 -> 0 | K23: x | L23: =ROUND((1/L19*10000)/5,0)*5/100 -> 1.65 | M23: % | N23: = | O23: =J23*L23/100 -> 0
C24: > 800 m3/j | F24: 0 | G24: x | H24: =ROUND((280000/600.88*IF('Coût de l''eau potable'!N1=2,N8,N12))/10000,0)*10000 -> 420000 | I24: = | J24: =F24*H24 -> 0 | K24: x | L24: =ROUND((1/L19*10000)/5,0)*5/100 -> 1.65 | M24: % | N24: = | O24: =J24*L24/100 -> 0
C25: Valeurs totales : | F25: =SUM(F22:F24) -> 0 | I25: =SUM(J22:J24) -> 0 | N25: =SUM(O22:O24) -> 0
B27: 1.2. | C27: Forages-captages | I27: Durée de vie utile : | L27: 35 | M27: ans
C29: Profondeur du forage | F29: Nombre de forages | G29: Valeur unitaire (€/pc) | I29: Valeur totale (€) | K29: Taux d'amortissement | N29: Amortissement annuel (€)
C30: 0 - 50 m | F30: 0 | G30: x | H30: =ROUND((160000/600.88*IF('Coût de l''eau potable'!N1=2,N8,N12))/10000,0)*10000 -> 240000 | I30: = | J30: =F30*H30 -> 0 | K30: x | L30: =ROUND((1/L27*10000)/5,0)*5/100 -> 2.85 | M30: % | N30: = | O30: =J30*L30/100 -> 0
C31: 50 -100 m | F31: 0 | G31: x | H31: =ROUND((220000/600.88*IF('Coût de l''eau potable'!N1=2,N8,N12))/10000,0)*10000 -> 330000 | I31: = | J31: =F31*H31 -> 0 | K31: x | L31: =ROUND((1/L27*10000)/5,0)*5/100 -> 2.85 | M31: % | N31: = | O31: =J31*L31/100 -> 0
C32: > 100 m | F32: 0 | G32: x | H32: =ROUND((280000/600.88*IF('Coût de l''eau potable'!N1=2,N8,N12))/10000,0)*10000 -> 420000 | I32: = | J32: =F32*H32 -> 0 | K32: x | L32: =ROUND((1/L27*10000)/5,0)*5/100 -> 2.85 | M32: % | N32: = | O32: =J32*L32/100 -> 0
C33: Valeurs totales : | F33: =SUM(F30:F32) -> 0 | I33: =SUM(J30:J32) -> 0 | N33: =SUM(O30:O32) -> 0
C35: TOTAL de l'amortissement annuel des captages en € : | N35: =N25+N33 -> 0
B38: 2. | C38: Conduites d'adduction (zone verte) | O38: Aide
B40: 2.1. | C40: Fonte ductile | I40: Durée de vie utile : | L40: 70 | M40: ans
C42: Diamètre nominal | F42: Longueur (m) | G42: Valeur unitaire (€/m) | I42: Valeur totale (€) | K42: Taux d'amortissement | N42: Amortissement annuel (€)
C43: ≤ | D43: 80 | E43: mm | F43: 0 | G43: x | H43: =(80+D43*0.6)/600.88*IF('Coût de l''eau potable'!$N$1=2,$N$8,$N$12) -> 192.3024897 | I43: = | J43: =F43*H43 -> 0 | K43: x | L43: =ROUND((1/L40*10000)/5,0)*5/100 -> 1.45 | M43: % | N43: = | O43: =J43*L43/100 -> 0
D44: 100 | E44: mm | F44: 0 | G44: x | H44: =(80+D44*0.6)/600.88*IF('Coût de l''eau potable'!$N$1=2,$N$8,$N$12) -> 210.3308481 | I44: = | J44: 0 | K44: x | L44: =ROUND((1/L40*10000)/5,0)*5/100 -> 1.45 | M44: % | N44: = | O44: 0
D45: 125 | E45: mm | F45: 0 | G45: x | H45: =(80+D45*0.6)/600.88*IF('Coût de l''eau potable'!$N$1=2,$N$8,$N$12) -> 232.8662961 | I45: = | J45: 0 | K45: x | L45: =ROUND((1/L40*10000)/5,0)*5/100 -> 1.45 | M45: % | N45: = | O45: 0
D46: 150 | E46: mm | F46: 0 | G46: x | H46: =(80+D46*0.6)/600.88*IF('Coût de l''eau potable'!$N$1=2,$N$8,$N$12) -> 255.4017441 | I46: = | J46: 0 | K46: x | L46: =ROUND((1/L40*10000)/5,0)*5/100 -> 1.45 | M46: % | N46: = | O46: 0
D47: 200 | E47: mm | F47: 0 | G47: x | H47: =(80+D47*0.6)/600.88*IF('Coût de l''eau potable'!$N$1=2,$N$8,$N$12) -> 300.4726401 | I47: = | J47: 0 | K47: x | L47: =ROUND((1/L40*10000)/5,0)*5/100 -> 1.45 | M47: % | N47: = | O47: 0
D48: 250 | E48: mm | F48: 0 | G48: x | H48: =(80+D48*0.6)/600.88*IF('Coût de l''eau potable'!$N$1=2,$N$8,$N$12) -> 345.5435361 | I48: = | J48: 0 | K48: x | L48: =ROUND((1/L40*10000)/5,0)*5/100 -> 1.45 | M48: % | N48: = | O48: 0
D49: 300 | E49: mm | F49: 0 | G49: x | H49: =(80+D49*0.6)/600.88*IF('Coût de l''eau potable'!$N$1=2,$N$8,$N$12) -> 390.6144322 | I49: = | J49: 0 | K49: x | L49: =ROUND((1/L40*10000)/5,0)*5/100 -> 1.45 | M49: % | N49: = | O49: 0
D50: 350 | E50: mm | F50: 0 | G50: x | H50: =(80+D50*0.6)/600.88*IF('Coût de l''eau potable'!$N$1=2,$N$8,$N$12) -> 435.6853282 | I50: = | J50: 0 | K50: x | L50: =ROUND((1/L40*10000)/5,0)*5/100 -> 1.45 | M50: % | N50: = | O50: 0
D51: 400 | E51: mm | F51: 0 | G51: x | H51: =(80+D51*0.6)/600.88*IF('Coût de l''eau potable'!$N$1=2,$N$8,$N$12) -> 480.7562242 | I51: = | J51: 0 | K51: x | L51: =ROUND((1/L40*10000)/5,0)*5/100 -> 1.45 | M51: % | N51: = | O51: 0
D52: 500 | E52: mm | F52: 0 | G52: x | H52: =(80+D52*0.6)/600.88*IF('Coût de l''eau potable'!$N$1=2,$N$8,$N$12) -> 570.8980162 | I52: = | J52: 0 | K52: x | L52: =ROUND((1/L40*10000)/5,0)*5/100 -> 1.45 | M52: % | N52: = | O52: 0
C53: ≥ | D53: 600 | E53: mm | F53: 0 | G53: x | H53: =(80+D53*0.6)/600.88*IF('Coût de l''eau potable'!$N$1=2,$N$8,$N$12) -> 661.0398083 | I53: = | J53: 0 | K53: x | L53: =ROUND((1/L40*10000)/5,0)*5/100 -> 1.45 | M53: % | N53: = | O53: 0
C54: Valeurs totales : | F54: =SUM(F43:F53) -> 0 | I54: =SUM(J43:J53) -> 0 | N54: =SUM(O43:O53) -> 0
B56: 2.2. | C56: PEHD | I56: Durée de vie utile : | L56: 70 | M56: ans
C58: Diamètre extérieur | F58: Longueur (m) | G58: Valeur unitaire (€/m) | I58: Valeur totale (€) | K58: Taux d'amortissement | N58: Amortissement annuel (€)
C59: ≤ | D59: 90 | E59: mm | F59: 0 | G59: x | H59: =(35+(D59-D59*0.18-0.03)*0.8)/600.88*IF('Coût de l''eau potable'!$N$1=2,$N$8,$N$12) -> 141.2461787 | I59: = | J59: =F59*H59 -> 0 | K59: x | L59: =ROUND((1/L56*10000)/5,0)*5/100 -> 1.45 | M59: % | N59: = | O59: =J59*L59/100 -> 0
D60: 110 | E60: mm | F60: 0 | G60: x | H60: =(35+(D60-D60*0.18-0.03)*0.8)/600.88*IF('Coût de l''eau potable'!$N$1=2,$N$8,$N$12) -> 160.9571839 | I60: = | J60: 0 | K60: x | L60: =ROUND((1/L56*10000)/5,0)*5/100 -> 1.45 | M60: % | N60: = | O60: 0
D61: 125 | E61: mm | F61: 0 | G61: x | H61: =(35+(D61-D61*0.18-0.03)*0.8)/600.88*IF('Coût de l''eau potable'!$N$1=2,$N$8,$N$12) -> 175.7404378 | I61: = | J61: 0 | K61: x | L61: =ROUND((1/L56*10000)/5,0)*5/100 -> 1.45 | M61: % | N61: = | O61: 0
D62: 140 | E62: mm | F62: 0 | G62: x | H62: =(35+(D62-D62*0.18-0.03)*0.8)/600.88*IF('Coût de l''eau potable'!$N$1=2,$N$8,$N$12) -> 190.5236917 | I62: = | J62: =F62*H62 -> 0 | K62: x | L62: =ROUND((1/L56*10000)/5,0)*5/100 -> 1.45 | M62: % | N62: = | O62: =J62*L62/100 -> 0
D63: 160 | E63: mm | F63: 0 | G63: x | H63: =(35+(D63-D63*0.18-0.03)*0.8)/600.88*IF('Coût de l''eau potable'!$N$1=2,$N$8,$N$12) -> 210.2346968 | I63: = | J63: 0 | K63: x | L63: =ROUND((1/L56*10000)/5,0)*5/100 -> 1.45 | M63: % | N63: = | O63: 0
D64: 180 | E64: mm | F64: 0 | G64: x | H64: =(35+(D64-D64*0.18-0.03)*0.8)/600.88*IF('Coût de l''eau potable'!$N$1=2,$N$8,$N$12) -> 229.945702 | I64: = | J64: 0 | K64: x | L64: =ROUND((1/L56*10000)/5,0)*5/100 -> 1.45 | M64: % | N64: = | O64: 0
D65: 200 | E65: mm | F65: 0 | G65: x | H65: =(35+(D65-D65*0.18-0.03)*0.8)/600.88*IF('Coût de l''eau potable'!$N$1=2,$N$8,$N$12) -> 249.6567072 | I65: = | J65: =F65*H65 -> 0 | K65: x | L65: =ROUND((1/L56*10000)/5,0)*5/100 -> 1.45 | M65: % | N65: = | O65: =J65*L65/100 -> 0
C66: ≥ | D66: 225 | E66: mm | F66: 0 | G66: x | H66: =(35+(D66-D66*0.18-0.03)*0.8)/600.88*IF('Coût de l''eau potable'!$N$1=2,$N$8,$N$12) -> 274.2954637 | I66: = | J66: 0 | K66: x | L66: =ROUND((1/L56*10000)/5,0)*5/100 -> 1.45 | M66: % | N66: = | O66: 0
C67: Valeurs totales : | F67: =SUM(F59:F66) -> 0 | I67: =SUM(J59:J66) -> 0 | N67: =SUM(O59:O66) -> 0
B69: 2.3. | C69: Acier | I69: Durée de vie utile : | L69: 70 | M69: ans
C71: Diamètre nominal | F71: Longueur (m) | G71: Valeur unitaire (€/m) | I71: Valeur totale (€) | K71: Taux d'amortissement | N71: Amortissement annuel (€)
C72: ≤ | D72: 80 | E72: mm | F72: 0 | G72: x | H72: =(130+D72*0.605)/600.88*IF('Coût de l''eau potable'!$N$1=2,$N$8,$N$12) -> 268.021595 | I72: = | J72: =F72*H72 -> 0 | K72: x | L72: =ROUND((1/L69*10000)/5,0)*5/100 -> 1.45 | M72: % | N72: = | O72: =J72*L72/100 -> 0
D73: 100 | E73: mm | F73: 0 | G73: x | H73: =(130+D73*0.605)/600.88*IF('Coût de l''eau potable'!$N$1=2,$N$8,$N$12) -> 286.2001897 | I73: = | J73: 0 | K73: x | L73: =ROUND((1/L69*10000)/5,0)*5/100 -> 1.45 | M73: % | N73: = | O73: 0
D74: 125 | E74: mm | F74: 0 | G74: x | H74: =(130+D74*0.605)/600.88*IF('Coût de l''eau potable'!$N$1=2,$N$8,$N$12) -> 308.9234331 | I74: = | J74: 0 | K74: x | L74: =ROUND((1/L69*10000)/5,0)*5/100 -> 1.45 | M74: % | N74: = | O74: 0
D75: 150 | E75: mm | F75: 0 | G75: x | H75: =(130+D75*0.605)/600.88*IF('Coût de l''eau potable'!$N$1=2,$N$8,$N$12) -> 331.6466765 | I75: = | J75: 0 | K75: x | L75: =ROUND((1/L69*10000)/5,0)*5/100 -> 1.45 | M75: % | N75: = | O75: 0
D76: 200 | E76: mm | F76: 0 | G76: x | H76: =(130+D76*0.605)/600.88*IF('Coût de l''eau potable'!$N$1=2,$N$8,$N$12) -> 377.0931634 | I76: = | J76: 0 | K76: x | L76: =ROUND((1/L69*10000)/5,0)*5/100 -> 1.45 | M76: % | N76: = | O76: 0
D77: 250 | E77: mm | F77: 0 | G77: x | H77: =(130+D77*0.605)/600.88*IF('Coût de l''eau potable'!$N$1=2,$N$8,$N$12) -> 422.5396502 | I77: = | J77: 0 | K77: x | L77: =ROUND((1/L69*10000)/5,0)*5/100 -> 1.45 | M77: % | N77: = | O77: 0
D78: 300 | E78: mm | F78: 0 | G78: x | H78: =(130+D78*0.605)/600.88*IF('Coût de l''eau potable'!$N$1=2,$N$8,$N$12) -> 467.986137 | I78: = | J78: 0 | K78: x | L78: =ROUND((1/L69*10000)/5,0)*5/100 -> 1.45 | M78: % | N78: = | O78: 0
D79: 350 | E79: mm | F79: 0 | G79: x | H79: =(130+D79*0.605)/600.88*IF('Coût de l''eau potable'!$N$1=2,$N$8,$N$12) -> 513.4326238 | I79: = | J79: 0 | K79: x | L79: =ROUND((1/L69*10000)/5,0)*5/100 -> 1.45 | M79: % | N79: = | O79: 0
D80: 400 | E80: mm | F80: 0 | G80: x | H80: =(130+D80*0.605)/600.88*IF('Coût de l''eau potable'!$N$1=2,$N$8,$N$12) -> 558.8791106 | I80: = | J80: 0 | K80: x | L80: =ROUND((1/L69*10000)/5,0)*5/100 -> 1.45 | M80: % | N80: = | O80: 0
D81: 450 | E81: mm | F81: 0 | G81: x | H81: =(130+D81*0.605)/600.88*IF('Coût de l''eau potable'!$N$1=2,$N$8,$N$12) -> 604.3255975 | I81: = | J81: 0 | K81: x | L81: =ROUND((1/L69*10000)/5,0)*5/100 -> 1.45 | M81: % | N81: = | O81: 0
D82: 500 | E82: mm | F82: 0 | G82: x | H82: =(130+D82*0.605)/600.88*IF('Coût de l''eau potable'!$N$1=2,$N$8,$N$12) -> 649.7720843 | I82: = | J82: 0 | K82: x | L82: =ROUND((1/L69*10000)/5,0)*5/100 -> 1.45 | M82: % | N82: = | O82: 0
C83: ≥ | D83: 600 | E83: mm | F83: 0 | G83: x | H83: =(130+D83*0.605)/600.88*IF('Coût de l''eau potable'!$N$1=2,$N$8,$N$12) -> 740.6650579 | I83: = | J83: 0 | K83: x | L83: =ROUND((1/L69*10000)/5,0)*5/100 -> 1.45 | M83: % | N83: = | O83: 0
C84: Valeurs totales : | F84: =SUM(F72:F83) -> 0 | I84: =SUM(J72:J83) -> 0 | N84: =SUM(O72:O83) -> 0
C86: TOTAL de l'amortissement annuel des conduites d'adduction en € : | N86: =N54+N67+N84 -> 0
B89: 3. | C89: Conduites de distribution (zone rurale à faible densité de construction) | O89: Aide
B91: 3.1. | C91: Fonte ductile | I91: Durée de vie utile : | L91: 50 | M91: ans
C93: Diamètre nominal | F93: Longueur (m) | G93: Valeur unitaire (€/m) | I93: Valeur totale (€) | K93: Taux d'amortissement | N93: Amortissement annuel (€)
C94: ≤ | D94: 80 | E94: mm | F94: 0 | G94: x | H94: =(140+D94*0.7)/600.88*IF('Coût de l''eau potable'!$N$1=2,$N$8,$N$12) -> 294.4631873 | I94: = | J94: =F94*H94*$R$2 -> 0 | K94: x | L94: =ROUND((1/L91*10000)/5,0)*5/100 -> 2 | M94: % | N94: = | O94: =J94*L94/100 -> 0
D95: 100 | E95: mm | F95: 0 | G95: x | H95: =(140+D95*0.7)/600.88*IF('Coût de l''eau potable'!$N$1=2,$N$8,$N$12) -> 315.4962721 | I95: = | J95: =F95*H95*$R$2 -> 0 | K95: x | L95: =ROUND((1/L91*10000)/5,0)*5/100 -> 2 | M95: % | N95: = | O95: 0
D96: 125 | E96: mm | F96: 0 | G96: x | H96: =(140+D96*0.7)/600.88*IF('Coût de l''eau potable'!$N$1=2,$N$8,$N$12) -> 341.7876281 | I96: = | J96: 0 | K96: x | L96: =ROUND((1/L91*10000)/5,0)*5/100 -> 2 | M96: % | N96: = | O96: 0
D97: 150 | E97: mm | F97: 0 | G97: x | H97: =(140+D97*0.7)/600.88*IF('Coût de l''eau potable'!$N$1=2,$N$8,$N$12) -> 368.0789842 | I97: = | J97: 0 | K97: x | L97: =ROUND((1/L91*10000)/5,0)*5/100 -> 2 | M97: % | N97: = | O97: 0
D98: 200 | E98: mm | F98: 0 | G98: x | H98: =(140+D98*0.7)/600.88*IF('Coût de l''eau potable'!$N$1=2,$N$8,$N$12) -> 420.6616962 | I98: = | J98: 0 | K98: x | L98: =ROUND((1/L91*10000)/5,0)*5/100 -> 2 | M98: % | N98: = | O98: 0
D99: 250 | E99: mm | F99: 0 | G99: x | H99: =(140+D99*0.7)/600.88*IF('Coût de l''eau potable'!$N$1=2,$N$8,$N$12) -> 473.2444082 | I99: = | J99: 0 | K99: x | L99: =ROUND((1/L91*10000)/5,0)*5/100 -> 2 | M99: % | N99: = | O99: 0
C100: ≥ | D100: 300 | E100: mm | F100: 0 | G100: x | H100: =(140+D100*0.7)/600.88*IF('Coût de l''eau potable'!$N$1=2,$N$8,$N$12) -> 525.8271202 | I100: = | J100: 0 | K100: x | L100: =ROUND((1/L91*10000)/5,0)*5/100 -> 2 | M100: % | N100: = | O100: 0
C101: Valeurs totales : | F101: =SUM(F94:F100)*$R$2 -> 0 | I101: =SUM(J94:J100) -> 0 | N101: =SUM(O94:O100) -> 0
B103: 3.2. | C103: PEHD | I103: Durée de vie utile : | L103: 50 | M103: ans
C105: Diamètre extérieur | F105: Longueur (m) | G105: Valeur unitaire (€/m) | I105: Valeur totale (€) | K105: Taux d'amortissement | N105: Amortissement annuel (€)
C106: ≤ | D106: 90 | E106: mm | F106: 0 | G106: x | H106: =(95+(D106-D106*0.18-0.03)*0.9)/600.88*IF('Coût de l''eau potable'!$N$1=2,$N$8,$N$12) -> 242.470904 | I106: = | J106: =F106*H106*$R$2 -> 0 | K106: x | L106: =ROUND((1/L103*10000)/5,0)*5/100 -> 2 | M106: % | N106: = | O106: =J106*L106/100 -> 0
D107: 110 | E107: mm | F107: 0 | G107: x | H107: =(95+(D107-D107*0.18-0.03)*0.9)/600.88*IF('Coût de l''eau potable'!$N$1=2,$N$8,$N$12) -> 264.6457849 | I107: = | J107: 0 | K107: x | L107: =ROUND((1/L103*10000)/5,0)*5/100 -> 2 | M107: % | N107: = | O107: 0
D108: 125 | E108: mm | F108: 0 | G108: x | H108: =(95+(D108-D108*0.18-0.03)*0.9)/600.88*IF('Coût de l''eau potable'!$N$1=2,$N$8,$N$12) -> 281.2769455 | I108: = | J108: 0 | K108: x | L108: =ROUND((1/L103*10000)/5,0)*5/100 -> 2 | M108: % | N108: = | O108: 0
D109: 140 | E109: mm | F109: 0 | G109: x | H109: =(95+(D109-D109*0.18-0.03)*0.9)/600.88*IF('Coût de l''eau potable'!$N$1=2,$N$8,$N$12) -> 297.9081061 | I109: = | J109: =F109*H109*$R$2 -> 0 | K109: x | L109: =ROUND((1/L103*10000)/5,0)*5/100 -> 2 | M109: % | N109: = | O109: =J109*L109/100 -> 0
D110: 160 | E110: mm | F110: 0 | G110: x | H110: =(95+(D110-D110*0.18-0.03)*0.9)/600.88*IF('Coût de l''eau potable'!$N$1=2,$N$8,$N$12) -> 320.082987 | I110: = | J110: 0 | K110: x | L110: =ROUND((1/L103*10000)/5,0)*5/100 -> 2 | M110: % | N110: = | O110: 0
D111: 180 | E111: mm | F111: 0 | G111: x | H111: =(95+(D111-D111*0.18-0.03)*0.9)/600.88*IF('Coût de l''eau potable'!$N$1=2,$N$8,$N$12) -> 342.2578678 | I111: = | J111: 0 | K111: x | L111: =ROUND((1/L103*10000)/5,0)*5/100 -> 2 | M111: % | N111: = | O111: 0
D112: 200 | E112: mm | F112: 0 | G112: x | H112: =(95+(D112-D112*0.18-0.03)*0.9)/600.88*IF('Coût de l''eau potable'!$N$1=2,$N$8,$N$12) -> 364.4327487 | I112: = | J112: =F112*H112*$R$2 -> 0 | K112: x | L112: =ROUND((1/L103*10000)/5,0)*5/100 -> 2 | M112: % | N112: = | O112: =J112*L112/100 -> 0
C113: ≥ | D113: 225 | E113: mm | F113: 0 | G113: x | H113: =(95+(D113-D113*0.18-0.03)*0.9)/600.88*IF('Coût de l''eau potable'!$N$1=2,$N$8,$N$12) -> 392.1513497 | I113: = | J113: 0 | K113: x | L113: =ROUND((1/L103*10000)/5,0)*5/100 -> 2 | M113: % | N113: = | O113: 0
C114: Valeurs totales : | F114: =SUM(F106:F113)*$R$2 -> 0 | I114: =SUM(J106:J113) -> 0 | N114: =SUM(O106:O113) -> 0
B116: 3.3. | C116: Branchements particuliers | I116: Durée de vie utile : | L116: 40 | M116: ans | O116: Aide
C118: Nombre de branchements particuliers | G118: Valeur unitaire (€/pc) | I118: Valeur totale (€) | K118: Taux d'amortissement | N118: Amortissement annuel (€)
C119: =SUM('Coût de l''eau potable'!D31:K31)*$R$2 -> 0 | G119: x | H119: =ROUND((1300/600.88*IF('Coût de l''eau potable'!$N$1=2,$N$8,$N$12))/10,0)*10 -> 1950 | I119: = | J119: =C119*H119 -> 0 | K119: x | L119: =ROUND((1/L116*10000)/5,0)*5/100 -> 2.5 | M119: % | N119: = | O119: =J119*L119/100 -> 0
C121: TOTAL de l'amortissement annuel des conduites de distribution en € : | N121: =N101+N114+O119 -> 0
B124: 4. | C124: Conduites de distribution (zone urbaine à forte densité de construction) | O124: Aide
B126: 4.1. | C126: Fonte ductile | I126: Durée de vie utile : | L126: 50 | M126: ans
C128: Diamètre nominal | F128: Longueur (m) | G128: Valeur unitaire (€/m) | I128: Valeur totale (€) | K128: Taux d'amortissement | N128: Amortissement annuel (€)
C129: ≤ | D129: 80 | E129: mm | F129: 0 | G129: x | H129: =(190+D129*0.7)/600.88*IF('Coût de l''eau potable'!$N$1=2,$N$8,$N$12) -> 369.5813474 | I129: = | J129: =F129*H129*$R$1 -> 0 | K129: x | L129: =ROUND((1/L126*10000)/5,0)*5/100 -> 2 | M129: % | N129: = | O129: =J129*L129/100 -> 0
D130: 100 | E130: mm | F130: 0 | G130: x | H130: =(190+D130*0.7)/600.88*IF('Coût de l''eau potable'!$N$1=2,$N$8,$N$12) -> 390.6144322 | I130: = | J130: =F130*H130*$R$1 -> 0 | K130: x | L130: =ROUND((1/L126*10000)/5,0)*5/100 -> 2 | M130: % | N130: = | O130: 0
D131: 125 | E131: mm | F131: 0 | G131: x | H131: =(190+D131*0.7)/600.88*IF('Coût de l''eau potable'!$N$1=2,$N$8,$N$12) -> 416.9057882 | I131: = | J131: 0 | K131: x | L131: =ROUND((1/L126*10000)/5,0)*5/100 -> 2 | M131: % | N131: = | O131: 0
D132: 150 | E132: mm | F132: 0 | G132: x | H132: =(190+D132*0.7)/600.88*IF('Coût de l''eau potable'!$N$1=2,$N$8,$N$12) -> 443.1971442 | I132: = | J132: 0 | K132: x | L132: =ROUND((1/L126*10000)/5,0)*5/100 -> 2 | M132: % | N132: = | O132: 0
D133: 200 | E133: mm | F133: 0 | G133: x | H133: =(190+D133*0.7)/600.88*IF('Coût de l''eau potable'!$N$1=2,$N$8,$N$12) -> 495.7798562 | I133: = | J133: 0 | K133: x | L133: =ROUND((1/L126*10000)/5,0)*5/100 -> 2 | M133: % | N133: = | O133: 0
D134: 250 | E134: mm | F134: 0 | G134: x | H134: =(190+D134*0.7)/600.88*IF('Coût de l''eau potable'!$N$1=2,$N$8,$N$12) -> 548.3625682 | I134: = | J134: 0 | K134: x | L134: =ROUND((1/L126*10000)/5,0)*5/100 -> 2 | M134: % | N134: = | O134: 0
D135: 300 | E135: mm | F135: 0 | G135: x | H135: =(190+D135*0.7)/600.88*IF('Coût de l''eau potable'!$N$1=2,$N$8,$N$12) -> 600.9452803 | I135: = | J135: 0 | K135: x | L135: =ROUND((1/L126*10000)/5,0)*5/100 -> 2 | M135: % | N135: = | O135: 0
D136: 350 | E136: mm | F136: 0 | G136: x | H136: =(190+D136*0.7)/600.88*IF('Coût de l''eau potable'!$N$1=2,$N$8,$N$12) -> 653.5279923 | I136: = | J136: 0 | K136: x | L136: =ROUND((1/L126*10000)/5,0)*5/100 -> 2 | M136: % | N136: = | O136: 0
C137: ≥ | D137: 400 | E137: mm | F137: 0 | G137: x | H137: =(190+D137*0.7)/600.88*IF('Coût de l''eau potable'!$N$1=2,$N$8,$N$12) -> 706.1107043 | I137: = | J137: 0 | K137: x | L137: =ROUND((1/L126*10000)/5,0)*5/100 -> 2 | M137: % | N137: = | O137: 0
C138: Valeurs totales : | F138: =SUM(F129:F137)*$R$1 -> 0 | I138: =SUM(J129:J137) -> 0 | N138: =SUM(O129:O137) -> 0
B140: 4.2. | C140: PEHD | I140: Durée de vie utile : | L140: 50 | M140: ans
C142: Diamètre extérieur | F142: Longueur (m) | G142: Valeur unitaire (€/m) | I142: Valeur totale (€) | K142: Taux d'amortissement | N142: Amortissement annuel (€)
C143: ≤ | D143: 90 | E143: mm | F143: 0 | G143: x | H143: =(145+(D143-D143*0.18-0.03)*0.9)/600.88*IF('Coût de l''eau potable'!$N$1=2,$N$8,$N$12) -> 317.5890641 | I143: = | J143: =F143*H143*$R$1 -> 0 | K143: x | L143: =ROUND((1/L140*10000)/5,0)*5/100 -> 2 | M143: % | N143: = | O143: =J143*L143/100 -> 0
D144: 110 | E144: mm | F144: 0 | G144: x | H144: =(145+(D144-D144*0.18-0.03)*0.9)/600.88*IF('Coût de l''eau potable'!$N$1=2,$N$8,$N$12) -> 339.7639449 | I144: = | J144: 0 | K144: x | L144: =ROUND((1/L140*10000)/5,0)*5/100 -> 2 | M144: % | N144: = | O144: 0
D145: 125 | E145: mm | F145: 0 | G145: x | H145: =(145+(D145-D145*0.18-0.03)*0.9)/600.88*IF('Coût de l''eau potable'!$N$1=2,$N$8,$N$12) -> 356.3951055 | I145: = | J145: 0 | K145: x | L145: =ROUND((1/L140*10000)/5,0)*5/100 -> 2 | M145: % | N145: = | O145: 0
D146: 160 | E146: mm | F146: 0 | G146: x | H146: =(145+(D146-D146*0.18-0.03)*0.9)/600.88*IF('Coût de l''eau potable'!$N$1=2,$N$8,$N$12) -> 395.201147 | I146: = | J146: 0 | K146: x | L146: =ROUND((1/L140*10000)/5,0)*5/100 -> 2 | M146: % | N146: = | O146: 0
D147: 180 | E147: mm | F147: 0 | G147: x | H147: =(145+(D147-D147*0.18-0.03)*0.9)/600.88*IF('Coût de l''eau potable'!$N$1=2,$N$8,$N$12) -> 417.3760279 | I147: = | J147: 0 | K147: x | L147: =ROUND((1/L140*10000)/5,0)*5/100 -> 2 | M147: % | N147: = | O147: =J147*L147/100 -> 0
D148: 200 | E148: mm | F148: 0 | G148: x | H148: =(145+(D148-D148*0.18-0.03)*0.9)/600.88*IF('Coût de l''eau potable'!$N$1=2,$N$8,$N$12) -> 439.5509087 | I148: = | J148: =F148*H148*$R$1 -> 0 | K148: x | L148: =ROUND((1/L140*10000)/5,0)*5/100 -> 2 | M148: % | N148: = | O148: =J148*L148/100 -> 0
C149: ≥ | D149: 225 | E149: mm | F149: 0 | G149: x | H149: =(145+(D149-D149*0.18-0.03)*0.9)/600.88*IF('Coût de l''eau potable'!$N$1=2,$N$8,$N$12) -> 467.2695098 | I149: = | J149: 0 | K149: x | L149: =ROUND((1/L140*10000)/5,0)*5/100 -> 2 | M149: % | N149: = | O149: 0
C150: Valeurs totales : | F150: =SUM(F143:F149)*$R$1 -> 0 | I150: =SUM(J143:J149) -> 0 | N150: =SUM(O143:O149) -> 0
B152: 4.4. | C152: Acier | I152: Durée de vie utile : | L152: 50 | M152: ans
C154: Diamètre nominal | F154: Longueur (m) | G154: Valeur unitaire (€/m) | I154: Valeur totale (€) | K154: Taux d'amortissement | N154: Amortissement annuel (€)
C155: ≤ | D155: 80 | E155: mm | F155: 0 | G155: x | H155: =(190+D155*0.7)/600.88*IF('Coût de l''eau potable'!$N$1=2,$N$8,$N$12) -> 369.5813474 | I155: = | J155: =F155*H155*$R$1 -> 0 | K155: x | L155: =ROUND((1/L152*10000)/5,0)*5/100 -> 2 | M155: % | N155: = | O155: =J155*L155/100 -> 0
D156: 100 | E156: mm | F156: 0 | G156: x | H156: =(190+D156*0.7)/600.88*IF('Coût de l''eau potable'!$N$1=2,$N$8,$N$12) -> 390.6144322 | I156: = | J156: =F156*H156*$R$1 -> 0 | K156: x | L156: =ROUND((1/L152*10000)/5,0)*5/100 -> 2 | M156: % | N156: = | O156: 0
D157: 125 | E157: mm | F157: 0 | G157: x | H157: =(190+D157*0.7)/600.88*IF('Coût de l''eau potable'!$N$1=2,$N$8,$N$12) -> 416.9057882 | I157: = | J157: 0 | K157: x | L157: =ROUND((1/L152*10000)/5,0)*5/100 -> 2 | M157: % | N157: = | O157: 0
D158: 150 | E158: mm | F158: 0 | G158: x | H158: =(190+D158*0.7)/600.88*IF('Coût de l''eau potable'!$N$1=2,$N$8,$N$12) -> 443.1971442 | I158: = | J158: 0 | K158: x | L158: =ROUND((1/L152*10000)/5,0)*5/100 -> 2 | M158: % | N158: = | O158: 0
D159: 200 | E159: mm | F159: 0 | G159: x | H159: =(190+D159*0.7)/600.88*IF('Coût de l''eau potable'!$N$1=2,$N$8,$N$12) -> 495.7798562 | I159: = | J159: 0 | K159: x | L159: =ROUND((1/L152*10000)/5,0)*5/100 -> 2 | M159: % | N159: = | O159: 0
D160: 250 | E160: mm | F160: 0 | G160: x | H160: =(190+D160*0.7)/600.88*IF('Coût de l''eau potable'!$N$1=2,$N$8,$N$12) -> 548.3625682 | I160: = | J160: 0 | K160: x | L160: =ROUND((1/L152*10000)/5,0)*5/100 -> 2 | M160: % | N160: = | O160: 0
D161: 300 | E161: mm | F161: 0 | G161: x | H161: =(190+D161*0.7)/600.88*IF('Coût de l''eau potable'!$N$1=2,$N$8,$N$12) -> 600.9452803 | I161: = | J161: 0 | K161: x | L161: =ROUND((1/L152*10000)/5,0)*5/100 -> 2 | M161: % | N161: = | O161: 0
D162: 350 | E162: mm | F162: 0 | G162: x | H162: =(190+D162*0.7)/600.88*IF('Coût de l''eau potable'!$N$1=2,$N$8,$N$12) -> 653.5279923 | I162: = | J162: 0 | K162: x | L162: =ROUND((1/L152*10000)/5,0)*5/100 -> 2 | M162: % | N162: = | O162: 0
C163: ≥ | D163: 400 | E163: mm | F163: 0 | G163: x | H163: =(190+D163*0.7)/600.88*IF('Coût de l''eau potable'!$N$1=2,$N$8,$N$12) -> 706.1107043 | I163: = | J163: 0 | K163: x | L163: =ROUND((1/L152*10000)/5,0)*5/100 -> 2 | M163: % | N163: = | O163: 0
C164: Valeurs totales : | F164: =SUM(F155:F163)*$R$1 -> 0 | I164: =SUM(J155:J163) -> 0 | N164: =SUM(O155:O163) -> 0
B166: 4.5. | C166: Branchements particuliers | I166: Durée de vie utile : | L166: 40 | M166: ans | O166: Aide
C168: Nombre de branchements particuliers | G168: Valeur unitaire (€/pc) | I168: Valeur totale (€) | K168: Taux d'amortissement | N168: Amortissement annuel (€)
C169: =SUM('Coût de l''eau potable'!D31:K31)*R1 -> 0 | G169: x | H169: =ROUND((1800/600.88*IF('Coût de l''eau potable'!$N$1=2,$N$8,$N$12))/10,0)*10 -> 2700 | I169: = | J169: =C169*H169 -> 0 | K169: x | L169: =ROUND((1/L166*10000)/5,0)*5/100 -> 2.5 | M169: % | N169: = | O169: =J169*L169/100 -> 0
C171: TOTAL de l'amortissement annuel des conduites de distribution en € : | N171: =N138+N150+N164+O169 -> 0
B174: 5. | C174: Réservoirs | O174: Aide
B176: 5.1. | C176: Réservoirs enterrés | I176: Durée de vie utile : | L176: 45 | M176: ans
C178: Code national | F178: Volume de stockage (m3) | G178: Valeur unitaire (€/m3) | I178: Valeur totale (€) | K178: Taux d'amortissement | N178: Amortissement annuel (€)
F179: 0 | G179: x | H179: =IF(F179=0,0,(118000*F179^-0.7)/761*IF('Coût de l''eau potable'!$N$1=2,$N$8,$N$12)) -> 0 | I179: = | J179: =F179*H179 -> 0 | K179: x | L179: =ROUND((1/L176*10000)/5,0)*5/100 -> 2.2 | M179: % | N179: = | O179: =J179*L179/100 -> 0
F180: 0 | G180: x | H180: =IF(F180=0,0,(118000*F180^-0.7)/761*IF('Coût de l''eau potable'!$N$1=2,$N$8,$N$12)) -> 0 | I180: = | J180: 0 | K180: x | L180: =ROUND((1/L176*10000)/5,0)*5/100 -> 2.2 | M180: % | N180: = | O180: 0
F181: 0 | G181: x | H181: =IF(F181=0,0,(118000*F181^-0.7)/761*IF('Coût de l''eau potable'!$N$1=2,$N$8,$N$12)) -> 0 | I181: = | J181: 0 | K181: x | L181: =ROUND((1/L176*10000)/5,0)*5/100 -> 2.2 | M181: % | N181: = | O181: 0
F182: 0 | G182: x | H182: =IF(F182=0,0,(118000*F182^-0.7)/761*IF('Coût de l''eau potable'!$N$1=2,$N$8,$N$12)) -> 0 | I182: = | J182: 0 | K182: x | L182: =ROUND((1/L176*10000)/5,0)*5/100 -> 2.2 | M182: % | N182: = | O182: 0
F183: 0 | G183: x | H183: =IF(F183=0,0,(118000*F183^-0.7)/761*IF('Coût de l''eau potable'!$N$1=2,$N$8,$N$12)) -> 0 | I183: = | J183: 0 | K183: x | L183: =ROUND((1/L176*10000)/5,0)*5/100 -> 2.2 | M183: % | N183: = | O183: 0
F184: 0 | G184: x | H184: =IF(F184=0,0,(118000*F184^-0.7)/761*IF('Coût de l''eau potable'!$N$1=2,$N$8,$N$12)) -> 0 | I184: = | J184: 0 | K184: x | L184: =ROUND((1/L176*10000)/5,0)*5/100 -> 2.2 | M184: % | N184: = | O184: 0
F185: 0 | G185: x | H185: =IF(F185=0,0,(118000*F185^-0.7)/761*IF('Coût de l''eau potable'!$N$1=2,$N$8,$N$12)) -> 0 | I185: = | J185: 0 | K185: x | L185: =ROUND((1/L176*10000)/5,0)*5/100 -> 2.2 | M185: % | N185: = | O185: 0
F186: 0 | G186: x | H186: =IF(F186=0,0,(118000*F186^-0.7)/761*IF('Coût de l''eau potable'!$N$1=2,$N$8,$N$12)) -> 0 | I186: = | J186: 0 | K186: x | L186: =ROUND((1/L176*10000)/5,0)*5/100 -> 2.2 | M186: % | N186: = | O186: 0
F187: 0 | G187: x | H187: =IF(F187=0,0,(118000*F187^-0.7)/761*IF('Coût de l''eau potable'!$N$1=2,$N$8,$N$12)) -> 0 | I187: = | J187: 0 | K187: x | L187: =ROUND((1/L176*10000)/5,0)*5/100 -> 2.2 | M187: % | N187: = | O187: 0
F188: 0 | G188: x | H188: =IF(F188=0,0,(118000*F188^-0.7)/761*IF('Coût de l''eau potable'!$N$1=2,$N$8,$N$12)) -> 0 | I188: = | J188: 0 | K188: x | L188: =ROUND((1/L176*10000)/5,0)*5/100 -> 2.2 | M188: % | N188: = | O188: 0
F189: 0 | G189: x | H189: =IF(F189=0,0,(118000*F189^-0.7)/761*IF('Coût de l''eau potable'!$N$1=2,$N$8,$N$12)) -> 0 | I189: = | J189: 0 | K189: x | L189: =ROUND((1/L176*10000)/5,0)*5/100 -> 2.2 | M189: % | N189: = | O189: 0
F190: 0 | G190: x | H190: =IF(F190=0,0,(118000*F190^-0.7)/761*IF('Coût de l''eau potable'!$N$1=2,$N$8,$N$12)) -> 0 | I190: = | J190: 0 | K190: x | L190: =ROUND((1/L176*10000)/5,0)*5/100 -> 2.2 | M190: % | N190: = | O190: 0
C191: Valeurs totales : | F191: =SUM(F179:F190) -> 0 | I191: =SUM(J179:J190) -> 0 | N191: =SUM(O179:O190) -> 0
B193: 5.2. | C193: Châteaux d'eau | I193: Durée de vie utile : | L193: 45 | M193: ans
C195: Code national | F195: Volume de stockage (m3) | G195: Valeur unitaire (€/m3) | I195: Valeur totale (€) | K195: Taux d'amortissement | N195: Amortissement annuel (€)
F196: 0 | G196: x | H196: =IF(F196=0,0,(230000*F196^-0.7)/600.88*IF('Coût de l''eau potable'!$N$1=2,$N$8,$N$12)) -> 0 | I196: = | J196: =F196*H196 -> 0 | K196: x | L196: =ROUND((1/L193*10000)/5,0)*5/100 -> 2.2 | M196: % | N196: = | O196: =J196*L196/100 -> 0
F197: 0 | G197: x | H197: =IF(F197=0,0,(230000*F197^-0.7)/600.88*IF('Coût de l''eau potable'!$N$1=2,$N$8,$N$12)) -> 0 | I197: = | J197: =F197*H197 -> 0 | K197: x | L197: =ROUND((1/L193*10000)/5,0)*5/100 -> 2.2 | M197: % | N197: = | O197: =J197*L197/100 -> 0
F198: 0 | G198: x | H198: =IF(F198=0,0,(230000*F198^-0.7)/600.88*IF('Coût de l''eau potable'!$N$1=2,$N$8,$N$12)) -> 0 | I198: = | J198: =F198*H198 -> 0 | K198: x | L198: =ROUND((1/L193*10000)/5,0)*5/100 -> 2.2 | M198: % | N198: = | O198: =J198*L198/100 -> 0
F199: 0 | G199: x | H199: =IF(F199=0,0,(230000*F199^-0.7)/600.88*IF('Coût de l''eau potable'!$N$1=2,$N$8,$N$12)) -> 0 | I199: = | J199: =F199*H199 -> 0 | K199: x | L199: =ROUND((1/L193*10000)/5,0)*5/100 -> 2.2 | M199: % | N199: = | O199: =J199*L199/100 -> 0
F200: 0 | G200: x | H200: =IF(F200=0,0,(230000*F200^-0.7)/600.88*IF('Coût de l''eau potable'!$N$1=2,$N$8,$N$12)) -> 0 | I200: = | J200: =F200*H200 -> 0 | K200: x | L200: =ROUND((1/L193*10000)/5,0)*5/100 -> 2.2 | M200: % | N200: = | O200: =J200*L200/100 -> 0
C201: Valeurs totales : | F201: =SUM(F196:F200) -> 0 | I201: =SUM(J196:J200) -> 0 | N201: =SUM(O196:O200) -> 0
C203: TOTAL de l'amortissement annuel des réservoirs en € : | N203: =N191+N201 -> 0
B206: 6. | C206: Stations élévatoires et régulatrices
B208: 6.1. | C208: Stations élévatoires dans le réseau d'adduction | O208: Aide
C210: Bâtiment | I210: Durée de vie utile : | L210: 50 | M210: ans
C212: Code national | F212: Volume bâti (m3) | G212: Valeur unitaire (€/m3) | I212: Valeur totale (€) | K212: Taux d'amortissement | N212: Amortissement annuel (€)
F213: 0 | G213: x | H213: =IF(F213=0,0,(1300*F213^-0.15)/600.88*IF('Coût de l''eau potable'!$N$1=2,$N$8,$N$12)) -> 0 | I213: = | J213: =F213*H213 -> 0 | K213: x | L213: =ROUND((1/L210*10000)/5,0)*5/100 -> 2 | M213: % | N213: = | O213: =J213*L213/100 -> 0
F214: 0 | G214: x | H214: =IF(F214=0,0,(1300*F214^-0.15)/600.88*IF('Coût de l''eau potable'!$N$1=2,$N$8,$N$12)) -> 0 | I214: = | J214: =F214*H214 -> 0 | K214: x | L214: =ROUND((1/L210*10000)/5,0)*5/100 -> 2 | M214: % | N214: = | O214: =J214*L214/100 -> 0
F215: 0 | G215: x | H215: =IF(F215=0,0,(1300*F215^-0.15)/600.88*IF('Coût de l''eau potable'!$N$1=2,$N$8,$N$12)) -> 0 | I215: = | J215: =F215*H215 -> 0 | K215: x | L215: =ROUND((1/L210*10000)/5,0)*5/100 -> 2 | M215: % | N215: = | O215: =J215*L215/100 -> 0
F216: 0 | G216: x | H216: =IF(F216=0,0,(1300*F216^-0.15)/600.88*IF('Coût de l''eau potable'!$N$1=2,$N$8,$N$12)) -> 0 | I216: = | J216: =F216*H216 -> 0 | K216: x | L216: =ROUND((1/L210*10000)/5,0)*5/100 -> 2 | M216: % | N216: = | O216: =J216*L216/100 -> 0
F217: 0 | G217: x | H217: =IF(F217=0,0,(1300*F217^-0.15)/600.88*IF('Coût de l''eau potable'!$N$1=2,$N$8,$N$12)) -> 0 | I217: = | J217: =F217*H217 -> 0 | K217: x | L217: =ROUND((1/L210*10000)/5,0)*5/100 -> 2 | M217: % | N217: = | O217: =J217*L217/100 -> 0
C218: Valeurs totales : | F218: =SUM(F213:F217) -> 0 | I218: =SUM(J213:J217) -> 0 | N218: =SUM(O213:O217) -> 0
C220: Equipement électromécanique | I220: Durée de vie utile : | L220: 20 | M220: ans
C222: Code national | F222: Capacité max. (m3/h) | G222: Valeur unitaire (€/m3/h) | I222: Valeur totale (€) | K222: Taux d'amortissement | N222: Amortissement annuel (€)
C223: =IF(C213="","",C213) ->  | F223: 0 | G223: x | H223: =IF(F223=0,0,(1700*F223^-0.2)/682.08*IF('Coût de l''eau potable'!$N$1=2,$N$8,$N$12)) -> 0 | I223: = | J223: =F223*H223 -> 0 | K223: x | L223: =ROUND((1/L220*10000)/5,0)*5/100 -> 5 | M223: % | N223: = | O223: =J223*L223/100 -> 0
C224: =IF(C214="","",C214) ->  | F224: 0 | G224: x | H224: =IF(F224=0,0,(1700*F224^-0.2)/682.08*IF('Coût de l''eau potable'!$N$1=2,$N$8,$N$12)) -> 0 | I224: = | J224: =F224*H224 -> 0 | K224: x | L224: =ROUND((1/L220*10000)/5,0)*5/100 -> 5 | M224: % | N224: = | O224: =J224*L224/100 -> 0
C225: =IF(C215="","",C215) ->  | F225: 0 | G225: x | H225: =IF(F225=0,0,(1700*F225^-0.2)/682.08*IF('Coût de l''eau potable'!$N$1=2,$N$8,$N$12)) -> 0 | I225: = | J225: =F225*H225 -> 0 | K225: x | L225: =ROUND((1/L220*10000)/5,0)*5/100 -> 5 | M225: % | N225: = | O225: =J225*L225/100 -> 0
C226: =IF(C216="","",C216) ->  | F226: 0 | G226: x | H226: =IF(F226=0,0,(1700*F226^-0.2)/682.08*IF('Coût de l''eau potable'!$N$1=2,$N$8,$N$12)) -> 0 | I226: = | J226: =F226*H226 -> 0 | K226: x | L226: =ROUND((1/L220*10000)/5,0)*5/100 -> 5 | M226: % | N226: = | O226: =J226*L226/100 -> 0
C227: =IF(C217="","",C217) ->  | F227: 0 | G227: x | H227: =IF(F227=0,0,(1700*F227^-0.2)/682.08*IF('Coût de l''eau potable'!$N$1=2,$N$8,$N$12)) -> 0 | I227: = | J227: =F227*H227 -> 0 | K227: x | L227: =ROUND((1/L220*10000)/5,0)*5/100 -> 5 | M227: % | N227: = | O227: =J227*L227/100 -> 0
C228: Valeurs totales : | F228: =SUM(F223:F227) -> 0 | I228: =SUM(J223:J227) -> 0 | N228: =SUM(O223:O227) -> 0
B230: 6.2. | C230: Stations de régulation de la pression dans le réseau de distribution | O230: Aide
C232: Bâtiment | I232: Durée de vie utile : | L232: 50 | M232: ans
C234: Nombre de stations de régulation | G234: Valeur unitaire (€/pc) | I234: Valeur totale (€) | K234: Taux d'amortissement | N234: Amortissement annuel (€)
C235: 0 | G235: x | H235: =ROUND((50000/600.88*IF('Coût de l''eau potable'!$N$1=2,$N$8,$N$12))/1000,0)*1000 -> 75000 | I235: = | J235: =C235*H235 -> 0 | K235: x | L235: =ROUND((1/L232*10000)/5,0)*5/100 -> 2 | M235: % | N235: = | O235: =J235*L235/100 -> 0
C237: Equipement électromécanique | I237: Durée de vie utile : | L237: 20 | M237: ans
C239: Nombre de stations de régulation | G239: Valeur unitaire (€/pc) | I239: Valeur totale (€) | K239: Taux d'amortissement | N239: Amortissement annuel (€)
C240: =C235 -> 0 | G240: x | H240: =ROUND((20000/600.88*IF('Coût de l''eau potable'!$N$1=2,$N$8,$N$12))/1000,0)*1000 -> 30000 | I240: = | J240: =C240*H240 -> 0 | K240: x | L240: =ROUND((1/L237*10000)/5,0)*5/100 -> 5 | M240: % | N240: = | O240: =J240*L240/100 -> 0
C242: TOTAL de l'amortissement annuel des stations de pompage en € : | N242: =N218+N228+O235+O240 -> 0
B245: 7. | C245: Autres éléments | O245: Aide
C247: Désignation | F247: Pièces | G247: Valeur unitaire (€/pc) | I247: Valeur totale (€) | K247: Taux d'amortissement | N247: Amortissement annuel (€)
F248: 0 | G248: x | H248: 0 | I248: = | J248: =F248*H248 -> 0 | K248: x | L248: 0 | M248: % | N248: = | O248: =J248*L248/100 -> 0
F249: 0 | G249: x | H249: 0 | I249: = | J249: =F249*H249 -> 0 | K249: x | L249: 0 | M249: % | N249: = | O249: =J249*L249/100 -> 0
F250: 0 | G250: x | H250: 0 | I250: = | J250: =F250*H250 -> 0 | K250: x | L250: 0 | M250: % | N250: = | O250: =J250*L250/100 -> 0
F251: 0 | G251: x | H251: 0 | I251: = | J251: =F251*H251 -> 0 | K251: x | L251: 0 | M251: % | N251: = | O251: =J251*L251/100 -> 0
F252: 0 | G252: x | H252: 0 | I252: = | J252: =F252*H252 -> 0 | K252: x | L252: 0 | M252: % | N252: = | O252: =J252*L252/100 -> 0
C253: Valeurs totales : | I253: =SUM(J248:J252) -> 0 | N253: =SUM(O248:O252) -> 0
B256: 8. | C256: =CONCATENATE("Valeur patrimoniale et amortissement annuel ",IF('Coût de l''eau potable'!$N$1=2,CONCATENATE("(année de référence ",'Coût de l''eau potable'!$K$5,")"),CONCATENATE("(données prévisionnelles ",'Coût de l''eau potable'!$K$7,")"))) -> Valeur patrimoniale et amortissement annuel (année de référence 2021) | O256: Aide
C258: Valeur patrimoniale des infrastructures d'approvisionnement en € hors frais d'études : | N258: =I25+I33+I54+I67+I84+I101+I114+J119+I138+I150+I164+J169+I191+I201+I218+I228+J235+J240+I253 -> 0
C260: Valeur unitaire du réseau de conduites en €/m hors frais d'études : | N260: =IF((F54+F67+F84+F101+F114+F138+F150+F164)=0,0,(I54+I67+I84+I101+I114+I138+I150+I164)/(F54+F67+F84+F101+F114+F138+F150+F164)) -> 0
C262: TOTAL de l'amortissement annuel des coûts de remplacement en € : | N262: =N35+N86+N121+N171+N203+N242+N253 -> 0
C263: TVA sur les coûts de remplacement en € : | N263: =N262*N14 -> 0
C264: TOTAL de l'amortissement annuel des frais d'études en € : | N264: =N35*0.16+N86*0.12+N121*0.12+N171*0.14+N203*0.16+N242*0.16+N253*0.16 -> 0
C265: TVA sur les frais d'études en € : | N265: =N264*N14 -> 0
C266: TOTAL de l'amortissement annuel des infrastructures d'approvisionnement en € : | N266: =N262+N263+N264+N265 -> 0

Sheet Amortissement charroi et immob.
A1: 23 / 03 / 2022
B2: Amortissement des parcs automobile et immobilier | J2: =IF('Coût de l''eau potable'!$N$1=2,'Coût de l''eau potable'!$H$5,'Coût de l''eau potable'!$I$7) -> Année de référence (comptes) : | P2: =IF('Coût de l''eau potable'!N1=2,'Coût de l''eau potable'!$K$5,'Coût de l''eau potable'!$K$7) -> 2021
B6: 0. | C6: Taux à base du calcul de l'amortissement
C8: =CONCATENATE("Indice moyen annuel des prix de la construction de l'année ",'Coût de l''eau potable'!$K$5," :") -> Indice moyen annuel des prix de la construction de l'année 2021 : | O8: ='Amortissement infrastructures'!N8 -> 902.74
C10: Variation annuelle estimée de l'indice des prix de la construction : | O10: ='Amortissement infrastructures'!N10 -> 0.025
C12: =CONCATENATE("Indice moyen annuel estimé des prix de la construction de l'année ",'Coût de l''eau potable'!$K$7," :") -> Indice moyen annuel estimé des prix de la construction de l'année 2023 : | O12: ='Amortissement infrastructures'!N12 -> 948.4412125
B15: 1. | C15: Parc automobile
B17: 1.1. | C17: Véhicules < 3,50 to | J17: Durée de vie utile : | M17: 5 | N17: ans
C19: Désignation | F19: Nombre de véhicules | G19: Quote-part de l'utilisation | H19: Valeur unitaire (€) | J19: Valeur totale (€) | L19: Taux d'amortissement | O19: Amortissement annuel (€)
F20: 0 | G20: 1 | H20: x | I20: 0 | J20: = | K20: =F20*G20*I20 -> 0 | L20: x | M20: =ROUND((1/M17*10000)/25,0)*25/100 -> 20 | N20: % | O20: = | P20: =K20*M20/100 -> 0
F21: 0 | G21: 1 | H21: x | I21: 0 | J21: = | K21: =F21*G21*I21 -> 0 | L21: x | M21: =ROUND((1/M17*10000)/25,0)*25/100 -> 20 | N21: % | O21: = | P21: =K21*M21/100 -> 0
F22: 0 | G22: 1 | H22: x | I22: 0 | J22: = | K22: 0 | L22: x | M22: =ROUND((1/M17*10000)/25,0)*25/100 -> 20 | N22: % | O22: = | P22: 0
F23: 0 | G23: 1 | H23: x | I23: 0 | J23: = | K23: 0 | L23: x | M23: =ROUND((1/M17*10000)/25,0)*25/100 -> 20 | N23: % | O23: = | P23: =K23*M23/100 -> 0
F24: 0 | G24: 1 | H24: x | I24: 0 | J24: = | K24: 0 | L24: x | M24: =ROUND((1/M17*10000)/25,0)*25/100 -> 20 | N24: % | O24: = | P24: =K24*M24/100 -> 0
F25: 0 | G25: 1 | H25: x | I25: 0 | J25: = | K25: 0 | L25: x | M25: =ROUND((1/M17*10000)/25,0)*25/100 -> 20 | N25: % | O25: = | P25: =K25*M25/100 -> 0
F26: 0 | G26: 1 | H26: x | I26: 0 | J26: = | K26: 0 | L26: x | M26: =ROUND((1/M17*10000)/25,0)*25/100 -> 20 | N26: % | O26: = | P26: 0
F27: 0 | G27: 1 | H27: x | I27: 0 | J27: = | K27: 0 | L27: x | M27: =ROUND((1/M17*10000)/25,0)*25/100 -> 20 | N27: % | O27: = | P27: 0
F28: 0 | G28: 1 | H28: x | I28: 0 | J28: = | K28: 0 | L28: x | M28: =ROUND((1/M17*10000)/25,0)*25/100 -> 20 | N28: % | O28: = | P28: 0
F29: 0 | G29: 1 | H29: x | I29: 0 | J29: = | K29: 0 | L29: x | M29: =ROUND((1/M17*10000)/25,0)*25/100 -> 20 | N29: % | O29: = | P29: 0
C30: Valeurs totales : | F30: =SUM(F20:F29) -> 0 | J30: =SUM(K20:K29) -> 0 | O30: =SUM(P20:P29) -> 0
B32: 2.2. | C32: Véhicules > 3,50 to | J32: Durée de vie utile : | M32: 10 | N32: ans
C34: Désignation | F34: Nombre de véhicules | G34: Quote-part de l'utilisation | H34: Valeur unitaire (€) | J34: Valeur totale (€) | L34: Taux d'amortissement | O34: Amortissement annuel (€)
F35: 0 | G35: 1 | H35: x | I35: 0 | J35: = | K35: =F35*G35*I35 -> 0 | L35: x | M35: =ROUND((1/M32*10000)/25,0)*25/100 -> 10 | N35: % | O35: = | P35: =K35*M35/100 -> 0
F36: 0 | G36: 1 | H36: x | I36: 0 | J36: = | K36: =F36*G36*I36 -> 0 | L36: x | M36: =ROUND((1/M32*10000)/25,0)*25/100 -> 10 | N36: % | O36: = | P36: 0
F37: 0 | G37: 1 | H37: x | I37: 0 | J37: = | K37: 0 | L37: x | M37: =ROUND((1/M32*10000)/25,0)*25/100 -> 10 | N37: % | O37: = | P37: 0
F38: 0 | G38: 1 | H38: x | I38: 0 | J38: = | K38: 0 | L38: x | M38: =ROUND((1/M32*10000)/25,0)*25/100 -> 10 | N38: % | O38: = | P38: 0
F39: 0 | G39: 1 | H39: x | I39: 0 | J39: = | K39: 0 | L39: x | M39: =ROUND((1/M32*10000)/25,0)*25/100 -> 10 | N39: % | O39: = | P39: 0
F40: 0 | G40: 1 | H40: x | I40: 0 | J40: = | K40: 0 | L40: x | M40: =ROUND((1/M32*10000)/25,0)*25/100 -> 10 | N40: % | O40: = | P40: 0
F41: 0 | G41: 1 | H41: x | I41: 0 | J41: = | K41: 0 | L41: x | M41: =ROUND((1/M32*10000)/25,0)*25/100 -> 10 | N41: % | O41: = | P41: 0
F42: 0 | G42: 1 | H42: x | I42: 0 | J42: = | K42: 0 | L42: x | M42: =ROUND((1/M32*10000)/25,0)*25/100 -> 10 | N42: % | O42: = | P42: 0
F43: 0 | G43: 1 | H43: x | I43: 0 | J43: = | K43: 0 | L43: x | M43: =ROUND((1/M32*10000)/25,0)*25/100 -> 10 | N43: % | O43: = | P43: 0
F44: 0 | G44: 1 | H44: x | I44: 0 | J44: = | K44: 0 | L44: x | M44: =ROUND((1/M32*10000)/25,0)*25/100 -> 10 | N44: % | O44: = | P44: 0
C45: Valeurs totales : | F45: =SUM(F35:F44) -> 0 | J45: =SUM(K35:K44) -> 0 | O45: =SUM(P35:P44) -> 0
C47: TOTAL de l'amortissement annuel du parc automobile en € : | O47: =O30+O45 -> 0
B50: 2. | C50: Parc immobilier
B52: 2.1. | C52: Bâtiments administratifs | J52: Durée de vie utile : | M52: 40 | N52: ans
C54: Désignation | F54: Volume bâti (m3) | G54: Quote-part de l'utilisation | H54: Valeur unitaire (€/m3) | J54: Valeur totale (€) | L54: Taux d'amortissement | O54: Amortissement annuel (€)
F55: 0 | G55: 1 | H55: x | I55: =ROUND((350/600.88*IF('Coût de l''eau potable'!$N$1=2,$O$8,$O$12))/10,0)*10 -> 530 | J55: = | K55: =F55*G55*I55 -> 0 | L55: x | M55: =ROUND((1/M52*10000)/25,0)*25/100 -> 2.5 | N55: % | O55: = | P55: =K55*M55/100 -> 0
F56: 0 | G56: 1 | H56: x | I56: =ROUND((350/600.88*IF('Coût de l''eau potable'!$N$1=2,$O$8,$O$12))/10,0)*10 -> 530 | J56: = | K56: =F56*G56*I56 -> 0 | L56: x | M56: =ROUND((1/M52*10000)/25,0)*25/100 -> 2.5 | N56: % | O56: = | P56: =K56*M56/100 -> 0
F57: 0 | G57: 1 | H57: x | I57: =ROUND((350/600.88*IF('Coût de l''eau potable'!$N$1=2,$O$8,$O$12))/10,0)*10 -> 530 | J57: = | K57: =F57*G57*I57 -> 0 | L57: x | M57: =ROUND((1/M52*10000)/25,0)*25/100 -> 2.5 | N57: % | O57: = | P57: =K57*M57/100 -> 0
F58: 0 | G58: 1 | H58: x | I58: =ROUND((350/600.88*IF('Coût de l''eau potable'!$N$1=2,$O$8,$O$12))/10,0)*10 -> 530 | J58: = | K58: =F58*G58*I58 -> 0 | L58: x | M58: =ROUND((1/M52*10000)/25,0)*25/100 -> 2.5 | N58: % | O58: = | P58: =K58*M58/100 -> 0
F59: 0 | G59: 1 | H59: x | I59: =ROUND((350/600.88*IF('Coût de l''eau potable'!$N$1=2,$O$8,$O$12))/10,0)*10 -> 530 | J59: = | K59: =F59*G59*I59 -> 0 | L59: x | M59: =ROUND((1/M52*10000)/25,0)*25/100 -> 2.5 | N59: % | O59: = | P59: =K59*M59/100 -> 0
C60: Valeurs totales : | F60: =SUM(F55:F59) -> 0 | J60: =SUM(K55:K59) -> 0 | O60: =SUM(P55:P59) -> 0
B62: 2.2. | C62: Halls techniques | J62: Durée de vie utile : | M62: 30 | N62: ans
C64: Désignation | F64: Volume bâti (m3) | G64: Quote-part de l'utilisation | H64: Valeur unitaire (€/m3) | J64: Valeur totale (€) | L64: Taux d'amortissement | O64: Amortissement annuel (€)
F65: 0 | G65: 1 | H65: x | I65: =ROUND((150/600.88*IF('Coût de l''eau potable'!$N$1=2,$O$8,$O$12))/10,0)*10 -> 230 | J65: = | K65: =F65*G65*I65 -> 0 | L65: x | M65: =ROUND((1/M62*10000)/25,0)*25/100 -> 3.25 | N65: % | O65: = | P65: =K65*M65/100 -> 0
F66: 0 | G66: 1 | H66: x | I66: =ROUND((150/600.88*IF('Coût de l''eau potable'!$N$1=2,$O$8,$O$12))/10,0)*10 -> 230 | J66: = | K66: =F66*G66*I66 -> 0 | L66: x | M66: =ROUND((1/M62*10000)/25,0)*25/100 -> 3.25 | N66: % | O66: = | P66: =K66*M66/100 -> 0
F67: 0 | G67: 1 | H67: x | I67: =ROUND((150/600.88*IF('Coût de l''eau potable'!$N$1=2,$O$8,$O$12))/10,0)*10 -> 230 | J67: = | K67: =F67*G67*I67 -> 0 | L67: x | M67: =ROUND((1/M62*10000)/25,0)*25/100 -> 3.25 | N67: % | O67: = | P67: =K67*M67/100 -> 0
F68: 0 | G68: 1 | H68: x | I68: =ROUND((150/600.88*IF('Coût de l''eau potable'!$N$1=2,$O$8,$O$12))/10,0)*10 -> 230 | J68: = | K68: =F68*G68*I68 -> 0 | L68: x | M68: =ROUND((1/M62*10000)/25,0)*25/100 -> 3.25 | N68: % | O68: = | P68: =K68*M68/100 -> 0
F69: 0 | G69: 1 | H69: x | I69: =ROUND((150/600.88*IF('Coût de l''eau potable'!$N$1=2,$O$8,$O$12))/10,0)*10 -> 230 | J69: = | K69: =F69*G69*I69 -> 0 | L69: x | M69: =ROUND((1/M62*10000)/25,0)*25/100 -> 3.25 | N69: % | O69: = | P69: =K69*M69/100 -> 0
C70: Valeurs totales : | F70: =SUM(F65:F69) -> 0 | J70: =SUM(K65:K69) -> 0 | O70: =SUM(P65:P69) -> 0
C72: TOTAL de l'amortissement annuel du parc immobilier en € : | O72: =O60+O70 -> 0
B75: 8. | C75: =CONCATENATE("Amortissement annuel ",IF('Coût de l''eau potable'!$N$1=2,CONCATENATE("(année de référence ",'Coût de l''eau potable'!$K$5,")"),CONCATENATE("(données prévisionnelles ",'Coût de l''eau potable'!$K$7,")"))) -> Amortissement annuel (année de référence 2021)
C77: TOTAL de l'amortissement annuel des parcs automobile et immobilier en € : | O77: =O47+O72 -> 0
